Workbook

Sheet RESUMO
A1: OBJETO - | B1: CRECHE - KIT DE GERAÇÃO DE ENERGIA SOLAR FOTOVOLTAICA - 123,75 kWp
A2: MUNICÍPIO - | B2: SÃO PEDRO DA CIPA - MT
A3: REFERÊNCIA - | B3: SINAPI/MT - 06/2022
A4: BDI - | B4: 0.25
A5: ENCARGOS - | B5: NÃO DESONERADO (Horista: 114,45% Mensalista: 72,21%)
A7: PLANILHA ORÇAMENTÁRIA RESUMIDA
A8: =CONCATENATE(C19, " (",(UPPER(Extenso_Valor(C19))),")") -> R$ 467.287,06 (QUATROCENTOS E SESSENTA E SETE MIL E DUZENTOS E OITENTA E SETE REAIS E SEIS CENTAVOS)
A10: Item | B10: Descrição | C10: Total | D10: Peso (%)
A11: 0 | B11: ADMINISTRAÇÃO DE OBRA | C11: Coluna1 | D11: 6,16%
A12: 1 | B12: KIT DE GERAÇÃO DE ENERGIA SOLAR FOTOVOLTAICA - 123,75 kWp | C12: 389569.02 | D12: 0.8336824478
A13: 2 | B13: ATERRAMENTO | C13: 3870.82 | D13: 0.008283601947
A14: 3 | B14: CABOS CA | C14: 26701.1 | D14: 0.05714067922
A15: 4 | B15: ACESSÓRIOS E DISPOSITIVOS DE SOBREPOR E EMBUTIR | C15: 41684.07 | D15: 0.08920441752
A16: 5 | B16: QUADRO DE DISTRIBUIÇÃO | C16: 5462.05 | D16: 0.01168885353
A17: Total sem BDI | C17: 373838.49
A18: Total do BDI | C18: 93448.57
A19: Total Geral | C19: R$ 467.287,06

Sheet Planilha2 (hidden)
A1: Código | B1: Descrição do Item | C1: Unidade | D1: Preço Mediano
A2: COT.01 | B2: CAIXA DE INSPEÇÃO N3 180X140MM | C2: unid. | D2: 9
A3: COT.02 | B3: CABO DE COBRE, RIGIDO, ISOLACAO EM EPR OU XLPE, COBERTURA ANTICHAMA EM PVC, PEAD OU HFFR, 1 CONDUTOR, 20/35 KV, SECAO NOMINAL 25 MM2 - (SUGERIDO - CABO ISOL.1KV 25.0 MM2 PRETO) | C3: m | D3: 22.75
A4: COT.03 | B4: ELETRODUTO FLEXIVEL, EM ACO GALVANIZADO, REVESTIDO EXTERNAMENTE COM PVC PRETO, DIAMETRO EXTERNO DE 90 MM (3"), TIPO SEALTUBO | C4: m | D4: 65.73
A5: COT.04 | B5: ORGANIZADOR DE FIOS E CABOS ESPIRAL 3\4" | C5: m | D5: 9.2
A6: COT.05 | B6: TERMINAL PINO COMPRESSÃO 120 MM | C6: unid. | D6: 31.35
A7: COT.06 | B7: TERMINAL PINO COMPRESSÃO 25 MM | C7: unid. | D7: 3.12
A8: COT.07 | B8: TERMINAL PINO COMPRESSÃO 6 MM | C8: unid. | D8: 0.75
A9: COT.08 | B9: TERMINAL PINO COMPRESSÃO 95 MM | C9: unid. | D9: 34.12
A10: COT.09 | B10: PARAF PHILIPS Nº 10 + BUCHA FIXACAO Nº 10 C.ANEL | C10: unid. | D10: 1.36
A11: COT.10 | B11: CONECTOR FÊMEA GIRATORIO PARA SEALTUBO 3'' | C11: unid. | D11: 129.54
A12: COT.11 | B12: CONECTOR MACHO GIRATORIO PARA SEALTUBO 3'' | C12: unid. | D12: 115.14
A13: COT.12 | B13: BARRA DE AÇO ROSCADA Ø1/4" 50 CM | C13: unid. | D13: 18
A14: COT.13 | B14: ARRUELA LISA Ø1/4" | C14: unid. | D14: 0.26
A15: COT.14 | B15: PORCA SEXTAVADA BICROMATIZADO 3/16'' | C15: unid. | D15: 0.2
A16: COT.15 | B16: PARAFUSO SEXTAVADA BICROMATIZADO 1/4 x 1/2'' | C16: unid. | D16: 1.05
A17: COT.16 | B17: ARRUELA LISA 3/16'' | C17: unid. | D17: 0.32
A18: COT.17 | B18: ISOLADOR EPOXI DIAMETRO 20MM COMPRIMENTO 20MM PARAFUSO 1/4 | C18: unid. | D18: 7.73
A19: COT.18 | B19: DISJUNTOR CAIXA MOLDADA TRIPOLAR 70A | C19: unid. | D19: 214.92
A20: COT.19 | B20: DISJUNTOR CAIXA MOLDADA TRIPOLAR 225A | C20: unid. | D20: 371.41
A21: COT.20 | B21: ACRILICO PORTEÇÃO PARA QUARDO DISTRIBUIÇÃO 2000 X 1000 X3 MM | C21: unid. | D21: 657.14
A22: COT.21 | B22: QUADRO DE COMANDO 800 X800 X 250 MM - COMPLETO COM CHAPA DE MONTAGEM - (ENCONTRADO - 800 X 600 X 250 MM) | C22: unid. | D22: 1381.32
A23: COT.22 | B23: BARRAMENTO DE COBRE 20X300 MM - TERRA/NEUTRO | C23: unid. | D23: 63.69
A24: COT.23 | B24: PARAFUSO SEXT. BICROMATIZADO 3/16'' | C24: unid. | D24: 0.87
A25: COT.24 | B25: DISJUNTOR CAIXA MOLDADA TRIPOLAR 150A | C25: unid. | D25: 350
A26: COT.25 | B26: DISJUNTOR CAIXA MOLDADA TRIPOLAR 200A | C26: unid. | D26: 370.95
A27: COTGLOBAL.01 | B27: KIT DE GERAÇÃO DE ENERGIA SOLAR FOTOVOLTAICA - 123,75 kWp - CRECHE | C27: unid. | D27: 311655.22
A28: COTGLOBAL.02 | B28: KIT DE GERAÇÃO DE ENERGIA SOLAR FOTOVOLTAICA - 62,70 Kwp - ESCOLA MUNICIPAL | C28: unid. | D28: 159363.87

Sheet SINTÉTICA
A1: OBJETO - | B1: =RESUMO!B1 -> CRECHE - KIT DE GERAÇÃO DE ENERGIA SOLAR FOTOVOLTAICA - 123,75 kWp
A2: MUNICÍPIO - | B2: =RESUMO!B2 -> SÃO PEDRO DA CIPA - MT
A3: REFERÊNCIA - | B3: =RESUMO!B3 -> SINAPI/MT - 06/2022
A4: BDI - | B4: =RESUMO!B4 -> 0.25
A5: ENCARGOS - | B5: =RESUMO!B5 -> NÃO DESONERADO (Horista: 114,45% Mensalista: 72,21%)
A7: PLANILHA ORÇAMENTÁRIA SINTÉTICA
A8: =CONCATENATE(I62, " (",(UPPER(Extenso_Valor(I62))),")") -> R$ 467.287,06 (QUATROCENTOS E SESSENTA E SETE MIL E DUZENTOS E OITENTA E SETE REAIS E SEIS CENTAVOS)
A10: Item | B10: Código | C10: Banco | D10: Descrição | E10: Und | F10: Quant. | G10: Valor Unit | H10: Valor Unit com BDI | I10: Total | J10: Peso (%)
A11: 1 | D11: KIT DE GERAÇÃO DE ENERGIA SOLAR FOTOVOLTAICA - 123,75 kWp | I11: =SUBTOTAL(9,I12) -> 389569.02 | J11: 0.8336824478
A12: 1.1 | B12: CP-ES-01 | C12: Próprio | D12: KIT DE GERAÇÃO DE ENERGIA SOLAR FOTOVOLTAICA - 123,75 kWp | E12: UND | F12: 1 | G12: 311655.22 | H12: 389569.02 | I12: 389569.02 | J12: 0.8336824478
A13: 2 | D13: ATERRAMENTO | I13: =SUBTOTAL(9,I14:I17) -> 3870.82 | J13: 0.008283601947
A14: 2.1 | B14: 96978 | C14: SINAPI | D14: CORDOALHA DE COBRE NU 70 MM², ENTERRADA, SEM ISOLADOR - FORNECIMENTO E INSTALAÇÃO. AF_12/2017 | E14: M | F14: 30 | G14: 85.99 | H14: 107.48 | I14: 3224.4 | J14: 0.006900255273
A15: 2.2 | B15: CP-SPDA-01 | C15: Próprio | D15: HASTE DE ATERRAMENTO 5/8 PARA SPDA COM CONECTOR - FORNECIMENTO E INSTALAÇÃO. AF_12/2017 | E15: UN | F15: 6 | G15: 79.81 | H15: 99.76 | I15: 598.56 | J15: 0.001280925691
A16: 2.3 | B16: CP-SPDA-02 | C16: Próprio | D16: CAIXA DE INSPEÇÃO PARA ATERRAMENTO, CIRCULAR, EM POLIETILENO, DIÂMETRO INTERNO ATÉ Ø0,20 M. FORNECIMENTO E INSTALAÇÃO | E16: UN | F16: 2 | G16: 15.38 | H16: 19.22 | I16: 38.44 | J16: 8.22620682e-05
A17: 2.4 | B17: CP-SPDA-03 | C17: Próprio | D17: TERMINAL A COMPRESSAO PARA CABO 70 MM2. FORNECIMENTO E INSTALAÇÃO | E17: UND | F17: 1 | G17: 7.54 | H17: 9.42 | I17: 9.42 | J17: 2.015891474e-05
A18: 3 | D18: CABOS CA | I18: =SUBTOTAL(9,I19:I23) -> 26701.1 | J18: 0.05714067922
A19: 3.1 | B19: CP-ELE-01 | C19: Próprio | D19: CABO DE COBRE FLEXÍVEL ISOLADO, 25 MM², EPR OU XPLE, ANTI-CHAMA 20/35 KV, PARA REDE DE DISTRIBUIÇÃO DE ENERGIA ELÉTRICA - FORNECIMENTO E INSTALAÇÃO. | E19: M | F19: 25 | G19: 25.69 | H19: 32.11 | I19: 802.75 | J19: 0.001717894778
A20: 3.2 | B20: CP-ELE-02 | C20: Próprio | D20: CABO DE COBRE FLEXÍVEL ISOLADO, 50 MM², EPR OU XPLE, ANTI-CHAMA 20/35 KV, PARA REDE DE DISTRIBUIÇÃO DE ENERGIA ELÉTRICA - FORNECIMENTO E INSTALAÇÃO. | E20: M | F20: 10 | G20: 154.45 | H20: 193.06 | I20: 1930.6 | J20: 0.004131507515
A21: 3.3 | B21: CP-ELE-03 | C21: Próprio | D21: CABO DE COBRE FLEXÍVEL ISOLADO, 95 MM², EPR OU XPLE, ANTI-CHAMA 20/35 KV, PARA REDE DE DISTRIBUIÇÃO DE ENERGIA ELÉTRICA - FORNECIMENTO E INSTALAÇÃO | E21: M | F21: 15 | G21: 218.89 | H21: 273.61 | I21: 4104.15 | J21: 0.008782930989
A22: 3.4 | B22: CP-ELE-04 | C22: Próprio | D22: CABO DE COBRE FLEXÍVEL ISOLADO, 70 MM², EPR OU XPLE, ANTI-CHAMA 20/35 KV, PARA REDE DE DISTRIBUIÇÃO DE ENERGIA ELÉTRICA - FORNECIMENTO E INSTALAÇÃO | E22: M | F22: 30 | G22: 183.38 | H22: 229.22 | I22: 6876.6 | J22: 0.01471600776
A23: 3.5 | B23: CP-ELE-05 | C23: Próprio | D23: CABO DE COBRE FLEXÍVEL ISOLADO, 120 MM², EPR OU XPLE, ANTI-CHAMA 20/35 KV, PARA REDE DE DISTRIBUIÇÃO DE ENERGIA ELÉTRICA - FORNECIMENTO E INSTALAÇÃO | E23: M | F23: 45 | G23: 230.88 | H23: 288.6 | I23: 12987 | J23: 0.02779233818
A24: 4 | D24: ACESSÓRIOS E DISPOSITIVOS DE SOBREPOR E EMBUTIR | I24: =SUBTOTAL(9,I25:I56) -> 41684.07 | J24: 0.08920441752
A25: 4.1 | B25: CP-ELE-06 | C25: Próprio | D25: ELETRODUTO FLEXIVEL, EM ACO GALVANIZADO, REVESTIDO EXTERNAMENTE COM PVC PRETO, DIAMETRO EXTERNO DE 90 MM (3"), TIPO SEALTUBO, PARA REDE DE DISTRIBUIÇÃO DE ENERGIA ELÉTRICA - FORNECIMENTO E INSTALAÇÃO. | E25: M | F25: 6 | G25: 78.71 | H25: 98.38 | I25: 590.28 | J25: 0.00126320639
A26: 4.2 | B26: CP-ELE-07 | C26: Próprio | D26: ORGANIZADOR DE FIOS E CABOS ESPIRAL 3\4". FORNECIMENTO E INSTALAÇÃO | E26: M | F26: 4 | G26: 10.77 | H26: 13.46 | I26: 53.84 | J26: 0.0001152182558
A27: 4.3 | B27: CP-ELE-08 | C27: Próprio | D27: FITA ISOLANTE ADESIVA ANTICHAMA, EM ROLO DE 19 MM X 20 M. FORNECIMENTO E INSTALAÇÃO | E27: UND | F27: 0.1 | G27: 16.88 | H27: 21.1 | I27: 2.11 | J27: 4.5154257e-06
A28: 4.4 | B28: 94226 | C28: SINAPI | D28: SUBCOBERTURA COM MANTA PLÁSTICA REVESTIDA POR PELÍCULA DE ALUMÍNO, INCLUSO TRANSPORTE VERTICAL. AF_07/2019 | E28: m² | F28: 5 | G28: 24.41 | H28: 30.51 | I28: 152.55 | J28: 0.0003264588581
A29: 4.5 | B29: CP-SPDA-03 | C29: Próprio | D29: TERMINAL A COMPRESSAO PARA CABO 70 MM2. FORNECIMENTO E INSTALAÇÃO | E29: UND | F29: 6 | G29: 7.54 | H29: 9.42 | I29: 56.52 | J29: 0.0001209534884
A30: 4.6 | B30: CP-SPDA-04 | C30: Próprio | D30: TERMINAL A COMPRESSAO PARA CABO 95 MM2. FORNECIMENTO E INSTALAÇÃO | E30: UND | F30: 6 | G30: 8.93 | H30: 11.16 | I30: 66.96 | J30: 0.0001432952156
A31: 4.7 | B31: CP-SPDA-05 | C31: Próprio | D31: TERMINAL A COMPRESSAO PARA CABO 50 MM2. FORNECIMENTO E INSTALAÇÃO | E31: UND | F31: 4 | G31: 6.35 | H31: 7.93 | I31: 31.72 | J31: 6.788118635e-05
A32: 4.8 | B32: CP-SPDA-06 | C32: Próprio | D32: TERMINAL A COMPRESSAO PARA CABO 25 MM2. FORNECIMENTO E INSTALAÇÃO | E32: UND | F32: 10 | G32: 4.01 | H32: 5.01 | I32: 50.1 | J32: 0.0001072146102
A33: 4.9 | B33: CP-ELE-09 | C33: Próprio | D33: TERMINAL A COMPRESSAO PINO PARA CABO 120 MM2. FORNECIMENTO E INSTALAÇÃO | E33: UND | F33: 6 | G33: 32.9 | H33: 41.12 | I33: 246.72 | J33: 0.0005279838051
A34: 4.10 | B34: CP-ELE-10 | C34: Próprio | D34: TERMINAL A COMPRESSAO PINO PARA CABO 95 MM2. FORNECIMENTO E INSTALAÇÃO | E34: UND | F34: 6 | G34: 35.67 | H34: 44.58 | I34: 267.48 | J34: 0.0005724104579
A35: 4.11 | B35: CP-ELE-11 | C35: Próprio | D35: TERMINAL A COMPRESSAO PINO PARA CABO 25 MM2. FORNECIMENTO E INSTALAÇÃO | E35: UND | F35: 6 | G35: 4.67 | H35: 5.83 | I35: 34.98 | J35: 7.485762606e-05
A36: 4.12 | B36: CP-ELE-12 | C36: Próprio | D36: TERMINAL A COMPRESSAO PINO PARA CABO 6 MM2. FORNECIMENTO E INSTALAÇÃO | E36: UND | F36: 26 | G36: 2.3 | H36: 2.87 | I36: 74.62 | J36: 0.0001596877089
A37: 4.13 | B37: 95818 | C37: SINAPI | D37: CONDULETE DE PVC, TIPO X, PARA ELETRODUTO DE PVC SOLDÁVEL DN 32 MM (1''), APARENTE - FORNECIMENTO E INSTALAÇÃO. AF_11/2016 | E37: UN | F37: 130 | G37: 37.9 | H37: 47.37 | I37: 6158.1 | J37: 0.01317840901
A38: 4.14 | B38: CP-ELE-13 | C38: Próprio | D38: TAMPA CEGA PARA CONDULETE DE PVC 4x2" - FORNECIMENTO E INSTALAÇÃO | E38: UN | F38: 130 | G38: 6.16 | H38: 7.7 | I38: 1001 | J38: 0.002142152192
A39: 4.15 | B39: CP-ELE-14 | C39: Próprio | D39: CURVA 135 GRAUS PARA ELETRODUTO, PVC, ROSCÁVEL, DN 32 MM (1''), PARA CIRCUITOS TERMINAIS. FORNECIMENTO E INSTALAÇÃO. | E39: UN | F39: 10 | G39: 13.12 | H39: 16.4 | I39: 164 | J39: 0.0003509619975
A40: 4.16 | B40: 91868 | C40: SINAPI | D40: ELETRODUTO RÍGIDO ROSCÁVEL, PVC, DN 32 MM (1"), PARA CIRCUITOS TERMINAIS, INSTALADO EM LAJE - FORNECIMENTO E INSTALAÇÃO. AF_12/2015 | E40: M | F40: 750 | G40: 11.91 | H40: 14.88 | I40: 11160 | J40: 0.02388253593
A41: 4.17 | B41: 91905 | C41: SINAPI | D41: CURVA 90 GRAUS PARA ELETRODUTO, PVC, ROSCÁVEL, DN 32 MM (1"), PARA CIRCUITOS TERMINAIS, INSTALADA EM LAJE - FORNECIMENTO E INSTALAÇÃO. AF_12/2015 | E41: UN | F41: 20 | G41: 14.46 | H41: 18.07 | I41: 361.4 | J41: 0.0007734004019
A42: 4.18 | B42: 91880 | C42: SINAPI | D42: LUVA PARA ELETRODUTO, PVC, ROSCÁVEL, DN 32 MM (1"), PARA CIRCUITOS TERMINAIS, INSTALADA EM LAJE - FORNECIMENTO E INSTALAÇÃO. AF_12/2015 | E42: UN | F42: 126 | G42: 8.65 | H42: 10.81 | I42: 1362.06 | J42: 0.00291482499
A43: 4.19 | B43: CP-ELE-15 | C43: Próprio | D43: UNIDUT CÔNICO Ø 1" COM ARRUELA - FORNECIMENTO E INSTALAÇÃO | E43: UN | F43: 260 | G43: 6.06 | H43: 7.57 | I43: 1968.2 | J43: 0.004211971973
A44: 4.20 | B44: CP-ELE-16 | C44: Próprio | D44: PARAFUSO E BUCHA MU 10MM, FORNECIMENTO E INSTALAÇÃO. | E44: UN | F44: 400 | G44: 2.12 | H44: 2.65 | I44: 1060 | J44: 0.002268412911
A45: 4.21 | B45: CP-ELE-17 | C45: Próprio | D45: ABRAÇADEIRA TIPO "D" COM CUNHA, DIÂMETRO 1" - FORNECIMENTO E INSTALAÇÃO. | E45: UN | F45: 375 | G45: 7.25 | H45: 9.06 | I45: 3397.5 | J45: 0.007270691382
A46: 4.22 | B46: 95728 | C46: SINAPI | D46: ELETRODUTO RÍGIDO SOLDÁVEL, PVC, DN 32 MM (1"), APARENTE, INSTALADO EM TETO - FORNECIMENTO E INSTALAÇÃO. AF_11/2016 | E46: M | F46: 6 | G46: 9.13 | H46: 11.41 | I46: 68.46 | J46: 0.0001465052338
A47: 4.23 | B47: 97670 | C47: SINAPI | D47: ELETRODUTO FLEXÍVEL CORRUGADO, PEAD, DN 100 (4"), PARA REDE ENTERRADA DE DISTRIBUIÇÃO DE ENERGIA ELÉTRICA - FORNECIMENTO E INSTALAÇÃO. AF_12/2021 | E47: M | F47: 15 | G47: 18.73 | H47: 23.41 | I47: 351.15 | J47: 0.000751465277
A48: 4.24 | B48: CP-ELE-19 | C48: Próprio | D48: CONECTOR FÊMEA PARA SEALTUBO 3'' COM ARRUELA- FORNECIMENTO E INSTALAÇÃO | E48: UN | F48: 1 | G48: 139.18 | H48: 173.97 | I48: 173.97 | J48: 0.000372297919
A49: 4.25 | B49: CP-ELE-20 | C49: Próprio | D49: ABRAÇADEIRA TIPO "D" COM CUNHA, DIÂMETRO 3" - FORNECIMENTO E INSTALAÇÃO. | E49: UN | F49: 6 | G49: 12.42 | H49: 15.52 | I49: 93.12 | J49: 0.0001992779342
A50: 4.26 | B50: CP-ELE-21 | C50: Próprio | D50: CONECTOR MACHO PARA SEALTUBO 3'' . FORNECIMENTO E INSTALAÇÃO | E50: UN | F50: 1 | G50: 116.78 | H50: 145.97 | I50: 145.97 | J50: 0.0003123775779
A51: 4.27 | B51: CP-ELE-22 | C51: Próprio | D51: PARAFUSO AUTOBROCANTE. FORNECIMENTO E INSTALAÇÃO. | E51: UND | F51: 200 | G51: 0.94 | H51: 1.17 | I51: 234 | J51: 0.0005007628501
A52: 4.28 | B52: CP-ELE-23 | C52: Próprio | D52: PARAFUSO DE ACO TIPO CHUMBADOR PARABOLT, DIAMETRO 3/8". FORNECIMENTO E INSTALAÇÃO | E52: UN | F52: 10 | G52: 4.73 | H52: 5.91 | I52: 59.1 | J52: 0.0001264747198
A53: 4.29 | B53: CP-ELE-24 | C53: Próprio | D53: BARRA DE AÇO ROSCADA Ø1/4" 50 CM, INCLUSO PORCAS E ARRUELAS. FORNECIMENTO E INSTALAÇÃO | E53: UN | F53: 10 | G53: 22.28 | H53: 27.85 | I53: 278.5 | J53: 0.0005959933922
A54: 4.30 | B54: 97887 | C54: SINAPI | D54: CAIXA ENTERRADA ELÉTRICA RETANGULAR, EM ALVENARIA COM TIJOLOS CERÂMICOS MACIÇOS, FUNDO COM BRITA, DIMENSÕES INTERNAS: 0,4X0,4X0,4 M. AF_12/2020 | E54: UN | F54: 6 | G54: 251.47 | H54: 314.33 | I54: 1885.98 | J54: 0.004036020171
A55: 4.31 | B55: CP-ALV-01 | C55: Próprio | D55: ABRIGO PARA EQUIPAMENTOS ELÉTRICOS, DIMENSÕES 2,00 X 2,20 X 1,20 M (LXAXP) | E55: UND | F55: 1 | G55: 7824.32 | H55: 9780.4 | I55: 9780.4 | J55: 0.02093017513
A56: 4.32 | B56: 93026 | C56: SINAPI | D56: CURVA 90 GRAUS PARA ELETRODUTO, PVC, ROSCÁVEL, DN 110 MM (4"), PARA REDE ENTERRADA DE DISTRIBUIÇÃO DE ENERGIA ELÉTRICA - FORNECIMENTO E INSTALAÇÃO. AF_12/2021 | E56: UN | F56: 4 | G56: 70.66 | H56: 88.32 | I56: 353.28 | J56: 0.000756023503
A57: 5 | D57: QUADRO DE DISTRIBUIÇÃO | I57: =SUBTOTAL(9,I58) -> 5462.05 | J57: 0.01168885353
A58: 5.1 | B58: CP-ELE-25 | C58: Próprio | D58: QUADRO DE COMANDO- CRECHE. FORNECIMENTO E INSTALAÇÃO | E58: UN | F58: 1 | G58: 4369.64 | H58: 5462.05 | I58: 5462.05 | J58: 0.01168885353
A60: Total sem BDI | I60: =RESUMO!C17 -> 373838.49
A61: Total do BDI | I61: =RESUMO!C18 -> 93448.57
A62: Total Geral | I62: R$ 467.287,06

Sheet ANALÍTICO - COMPOSIÇÃO DE CUSTO
A1: OBJETO - | B1: =RESUMO!B1 -> CRECHE - KIT DE GERAÇÃO DE ENERGIA SOLAR FOTOVOLTAICA - 123,75 kWp
A2: MUNICÍPIO - | B2: =RESUMO!B2 -> SÃO PEDRO DA CIPA - MT
A3: REFERÊNCIA - | B3: =RESUMO!B3 -> SINAPI/MT - 06/2022
A4: BDI - | B4: =RESUMO!B4 -> 0.25
A5: ENCARGOS - | B5: =RESUMO!B5 -> NÃO DESONERADO (Horista: 114,45% Mensalista: 72,21%)
A7: PLANILHA ORÇAMENTÁRIA ANALÍTICA - COMPOSIÇÃO DE PREÇOS
A9: 1.1 | B9: Código | C9: Banco | D9: Descrição | E9: Tipo | G9: Und | H9: Quant. | I9: Valor Unit | J9: Total
A10: Composição | B10: CP-ES-01 | C10: Próprio | D10: KIT DE GERAÇÃO DE ENERGIA SOLAR FOTOVOLTAICA - 123,75 kWp | E10: INES - INSTALAÇÕES ESPECIAIS | G10: UND | H10: 1 | I10: 311655.22 | J10: 311655.22
A11: Insumo | B11: COTGLOBAL.01 | C11: Próprio | D11: KIT DE GERAÇÃO DE ENERGIA SOLAR FOTOVOLTAICA - 123,75 kWp | E11: Material | G11: UND | H11: 1 | I11: 311655.22 | J11: 311655.22 | K11: =VLOOKUP(B11,COTS_,4,FALSE) -> 311655.22 | L11: =K11-I11 -> 0
E12: MO sem LS => | F12: 0 | G12: LS => | H12: 0 | I12: MO com LS => | J12: 0
E13: Valor do BDI => | F13: 77913.8 | H13: Valor com BDI => | J13: 389569.02
A15: 2.1 | B15: Código | C15: Banco | D15: Descrição | E15: Tipo | G15: Und | H15: Quant. | I15: Valor Unit | J15: Total
A16: Composição | B16: 96978 | C16: SINAPI | D16: CORDOALHA DE COBRE NU 70 MM², ENTERRADA, SEM ISOLADOR - FORNECIMENTO E INSTALAÇÃO. AF_12/2017 | E16: INEL - INSTALAÇÃO ELÉTRICA/ELETRIFICAÇÃO E ILUMINAÇÃO EXTERNA | G16: M | H16: 1 | I16: 85.99 | J16: 85.99
A17: Composição Auxiliar | B17: 88264 | C17: SINAPI | D17: ELETRICISTA COM ENCARGOS COMPLEMENTARES | E17: SEDI - SERVIÇOS DIVERSOS | G17: H | H17: 0.0407 | I17: 23.24 | J17: 0.94
A18: Composição Auxiliar | B18: 88247 | C18: SINAPI | D18: AUXILIAR DE ELETRICISTA COM ENCARGOS COMPLEMENTARES | E18: SEDI - SERVIÇOS DIVERSOS | G18: H | H18: 0.0407 | I18: 19.2 | J18: 0.78
A19: Insumo | B19: 00000864 | C19: SINAPI | D19: CABO DE COBRE NU 70 MM2 MEIO-DURO | E19: Material | G19: M | H19: 1.1 | I19: 76.61 | J19: 84.27
E20: MO sem LS => | F20: 1.32 | G20: LS => | H20: 0 | I20: MO com LS => | J20: 1.32
E21: Valor do BDI => | F21: 21.49 | H21: Valor com BDI => | J21: 107.48
A23: 2.2 | B23: Código | C23: Banco | D23: Descrição | E23: Tipo | G23: Und | H23: Quant. | I23: Valor Unit | J23: Total
A24: Composição | B24: CP-SPDA-01 | C24: Próprio | D24: HASTE DE ATERRAMENTO 5/8 PARA SPDA COM CONECTOR - FORNECIMENTO E INSTALAÇÃO. AF_12/2017 | E24: INEL - INSTALAÇÃO ELÉTRICA/ELETRIFICAÇÃO E ILUMINAÇÃO EXTERNA | G24: UN | H24: 1 | I24: 79.81 | J24: 79.81
A25: Composição Auxiliar | B25: 88247 | C25: SINAPI | D25: AUXILIAR DE ELETRICISTA COM ENCARGOS COMPLEMENTARES | E25: SEDI - SERVIÇOS DIVERSOS | G25: H | H25: 0.3515 | I25: 19.2 | J25: 6.74
A26: Composição Auxiliar | B26: 88264 | C26: SINAPI | D26: ELETRICISTA COM ENCARGOS COMPLEMENTARES | E26: SEDI - SERVIÇOS DIVERSOS | G26: H | H26: 0.3515 | I26: 23.24 | J26: 8.16
A27: Insumo | B27: 00003380 | C27: SINAPI | D27: HASTE DE ATERRAMENTO EM ACO COM 3,00 M DE COMPRIMENTO E DN = 5/8", REVESTIDA COM BAIXA CAMADA DE COBRE, COM CONECTOR TIPO GRAMPO | E27: Material | G27: UN | H27: 1 | I27: 64.91 | J27: 64.91
E28: MO sem LS => | F28: 11.44 | G28: LS => | H28: 0 | I28: MO com LS => | J28: 11.44
E29: Valor do BDI => | F29: 19.95 | H29: Valor com BDI => | J29: 99.76
A30: Observação
A31: R.: Copia da SINAPI (96985) → COM CONECTOR
A33: 2.3 | B33: Código | C33: Banco | D33: Descrição | E33: Tipo | G33: Und | H33: Quant. | I33: Valor Unit | J33: Total
A34: Composição | B34: CP-SPDA-02 | C34: Próprio | D34: CAIXA DE INSPEÇÃO PARA ATERRAMENTO, CIRCULAR, EM POLIETILENO, DIÂMETRO INTERNO ATÉ Ø0,20 M. FORNECIMENTO E INSTALAÇÃO | E34: INEL - INSTALAÇÃO ELÉTRICA/ELETRIFICAÇÃO E ILUMINAÇÃO EXTERNA | G34: UN | H34: 1 | I34: 15.38 | J34: 15.38
A35: Composição Auxiliar | B35: 88309 | C35: SINAPI | D35: PEDREIRO COM ENCARGOS COMPLEMENTARES | E35: SEDI - SERVIÇOS DIVERSOS | G35: H | H35: 0.12456 | I35: 22.41 | J35: 2.79
A36: Composição Auxiliar | B36: 88316 | C36: SINAPI | D36: SERVENTE COM ENCARGOS COMPLEMENTARES | E36: SEDI - SERVIÇOS DIVERSOS | G36: H | H36: 0.09792 | I36: 17.82 | J36: 1.74
A37: Composição Auxiliar | B37: 101618 | C37: SINAPI | D37: PREPARO DE FUNDO DE VALA COM LARGURA MENOR QUE 1,5 M, COM CAMADA DE AREIA, LANÇAMENTO MANUAL. AF_08/2020 | E37: MOVT - MOVIMENTO DE TERRA | G37: m³ | H37: 0.00815 | I37: 227.81 | J37: 1.85
A38: Insumo | B38: COT.01 | C38: Próprio | D38: CAIXA DE INSPECAO PARA ATERRAMENTO OU OUTRO USO, EM PVC, DN = 200 X 150 MM | E38: Material | G38: UND | H38: 1 | I38: 9 | J38: 9 | K38: =VLOOKUP(B38,COTS_,4,FALSE) -> 9 | L38: =K38-I38 -> 0
E39: MO sem LS => | F39: 4.07 | G39: LS => | H39: 0 | I39: MO com LS => | J39: 4.07
E40: Valor do BDI => | F40: 3.84 | H40: Valor com BDI => | J40: 19.22
A41: Observação
A42: R.: Copia da SINAPI (98111)
A44: 2.4 | B44: Código | C44: Banco | D44: Descrição | E44: Tipo | G44: Und | H44: Quant. | I44: Valor Unit | J44: Total
A45: Composição | B45: CP-SPDA-03 | C45: Próprio | D45: TERMINAL A COMPRESSAO PARA CABO 70 MM2. FORNECIMENTO E INSTALAÇÃO | E45: INEL - INSTALAÇÃO ELÉTRICA/ELETRIFICAÇÃO E ILUMINAÇÃO EXTERNA | G45: UND | H45: 1 | I45: 7.54 | J45: 7.54
A46: Composição Auxiliar | B46: 88264 | C46: SINAPI | D46: ELETRICISTA COM ENCARGOS COMPLEMENTARES | E46: SEDI - SERVIÇOS DIVERSOS | G46: H | H46: 0.04 | I46: 23.24 | J46: 0.92
A47: Composição Auxiliar | B47: 88247 | C47: SINAPI | D47: AUXILIAR DE ELETRICISTA COM ENCARGOS COMPLEMENTARES | E47: SEDI - SERVIÇOS DIVERSOS | G47: H | H47: 0.033 | I47: 19.2 | J47: 0.63
A48: Insumo | B48: 00001579 | C48: SINAPI | D48: TERMINAL A COMPRESSAO EM COBRE ESTANHADO PARA CABO 70 MM2, 1 FURO E 1 COMPRESSAO, PARA PARAFUSO DE FIXACAO M10 | E48: Material | G48: UN | H48: 1 | I48: 5.99 | J48: 5.99
E49: MO sem LS => | F49: 1.2 | G49: LS => | H49: 0 | I49: MO com LS => | J49: 1.2
E50: Valor do BDI => | F50: 1.88 | H50: Valor com BDI => | J50: 9.42
A52: 3.1 | B52: Código | C52: Banco | D52: Descrição | E52: Tipo | G52: Und | H52: Quant. | I52: Valor Unit | J52: Total
A53: Composição | B53: CP-ELE-01 | C53: Próprio | D53: CABO DE COBRE FLEXÍVEL ISOLADO, 25 MM², EPR OU XPLE, ANTI-CHAMA 20/35 KV, PARA REDE DE DISTRIBUIÇÃO DE ENERGIA ELÉTRICA - FORNECIMENTO E INSTALAÇÃO. | E53: INEL - INSTALAÇÃO ELÉTRICA/ELETRIFICAÇÃO E ILUMINAÇÃO EXTERNA | G53: M | H53: 1 | I53: 25.69 | J53: 25.69
A54: Composição Auxiliar | B54: 88247 | C54: SINAPI | D54: AUXILIAR DE ELETRICISTA COM ENCARGOS COMPLEMENTARES | E54: SEDI - SERVIÇOS DIVERSOS | G54: H | H54: 0.0608 | I54: 19.2 | J54: 1.16
A55: Composição Auxiliar | B55: 88264 | C55: SINAPI | D55: ELETRICISTA COM ENCARGOS COMPLEMENTARES | E55: SEDI - SERVIÇOS DIVERSOS | G55: H | H55: 0.0608 | I55: 23.24 | J55: 1.41
A56: Insumo | B56: 00021127 | C56: SINAPI | D56: FITA ISOLANTE ADESIVA ANTICHAMA, USO ATE 750 V, EM ROLO DE 19 MM X 5 M | E56: Material | G56: UN | H56: 0.009 | I56: 3.47 | J56: 0.03
A57: Insumo | B57: COT.02 | C57: Próprio | D57: CABO DE COBRE, RIGIDO, ISOLACAO EM EPR OU XLPE, COBERTURA ANTICHAMA EM PVC, PEAD OU HFFR, 1 CONDUTOR, 20/35 KV, SECAO NOMINAL 25 MM2 | E57: Material | G57: M | H57: 1.015 | I57: 22.75 | J57: 23.09 | K57: =VLOOKUP(B57,COTS_,4,FALSE) -> 22.75 | L57: =K57-I57 -> 0
E58: MO sem LS => | F58: 1.97 | G58: LS => | H58: 0 | I58: MO com LS => | J58: 1.97
E59: Valor do BDI => | F59: 6.42 | H59: Valor com BDI => | J59: 32.11
A60: Observação
A61: R.: Copia da SINAPI (92984)
A63: 3.2 | B63: Código | C63: Banco | D63: Descrição | E63: Tipo | G63: Und | H63: Quant. | I63: Valor Unit | J63: Total
A64: Composição | B64: CP-ELE-02 | C64: Próprio | D64: CABO DE COBRE FLEXÍVEL ISOLADO, 50 MM², EPR OU XPLE, ANTI-CHAMA 20/35 KV, PARA REDE DE DISTRIBUIÇÃO DE ENERGIA ELÉTRICA - FORNECIMENTO E INSTALAÇÃO. | E64: INEL - INSTALAÇÃO ELÉTRICA/ELETRIFICAÇÃO E ILUMINAÇÃO EXTERNA | G64: M | H64: 1 | I64: 154.45 | J64: 154.45
A65: Composição Auxiliar | B65: 88247 | C65: SINAPI | D65: AUXILIAR DE ELETRICISTA COM ENCARGOS COMPLEMENTARES | E65: SEDI - SERVIÇOS DIVERSOS | G65: H | H65: 0.083 | I65: 19.2 | J65: 1.59
A66: Composição Auxiliar | B66: 88264 | C66: SINAPI | D66: ELETRICISTA COM ENCARGOS COMPLEMENTARES | E66: SEDI - SERVIÇOS DIVERSOS | G66: H | H66: 0.083 | I66: 23.24 | J66: 1.92
A67: Insumo | B67: 00021127 | C67: SINAPI | D67: FITA ISOLANTE ADESIVA ANTICHAMA, USO ATE 750 V, EM ROLO DE 19 MM X 5 M | E67: Material | G67: UN | H67: 0.009 | I67: 3.47 | J67: 0.03
A68: Insumo | B68: 00000873 | C68: SINAPI | D68: CABO DE COBRE, RIGIDO, CLASSE 2, COMPACTADO, BLINDADO, ISOLACAO EM EPR OU XLPE, COBERTURA ANTICHAMA EM PVC, PEAD OU HFFR, 1 CONDUTOR, 20/35 KV, SECAO NOMINAL 50 MM2 | E68: Material | G68: M | H68: 1.015 | I68: 148.68 | J68: 150.91
E69: MO sem LS => | F69: 2.7 | G69: LS => | H69: 0 | I69: MO com LS => | J69: 2.7
E70: Valor do BDI => | F70: 38.61 | H70: Valor com BDI => | J70: 193.06
A71: Observação
A72: R.: 92988 (SINAPI)
A74: 3.3 | B74: Código | C74: Banco | D74: Descrição | E74: Tipo | G74: Und | H74: Quant. | I74: Valor Unit | J74: Total
A75: Composição | B75: CP-ELE-03 | C75: Próprio | D75: CABO DE COBRE FLEXÍVEL ISOLADO, 95 MM², EPR OU XPLE, ANTI-CHAMA 20/35 KV, PARA REDE DE DISTRIBUIÇÃO DE ENERGIA ELÉTRICA - FORNECIMENTO E INSTALAÇÃO | E75: INEL - INSTALAÇÃO ELÉTRICA/ELETRIFICAÇÃO E ILUMINAÇÃO EXTERNA | G75: M | H75: 1 | I75: 218.89 | J75: 218.89
A76: Composição Auxiliar | B76: 88247 | C76: SINAPI | D76: AUXILIAR DE ELETRICISTA COM ENCARGOS COMPLEMENTARES | E76: SEDI - SERVIÇOS DIVERSOS | G76: H | H76: 0.1228 | I76: 19.2 | J76: 2.35
A77: Composição Auxiliar | B77: 88264 | C77: SINAPI | D77: ELETRICISTA COM ENCARGOS COMPLEMENTARES | E77: SEDI - SERVIÇOS DIVERSOS | G77: H | H77: 0.1228 | I77: 23.24 | J77: 2.85
A78: Insumo | B78: 00021127 | C78: SINAPI | D78: FITA ISOLANTE ADESIVA ANTICHAMA, USO ATE 750 V, EM ROLO DE 19 MM X 5 M | E78: Material | G78: UN | H78: 0.009 | I78: 3.47 | J78: 0.03
A79: Insumo | B79: 00000875 | C79: SINAPI | D79: CABO DE COBRE, RIGIDO, CLASSE 2, COMPACTADO, BLINDADO, ISOLACAO EM EPR OU XLPE, COBERTURA ANTICHAMA EM PVC, PEAD OU HFFR, 1 CONDUTOR, 20/35 KV, SECAO NOMINAL 95 MM2 | E79: Material | G79: M | H79: 1.015 | I79: 210.51 | J79: 213.66
E80: MO sem LS => | F80: 3.99 | G80: LS => | H80: 0 | I80: MO com LS => | J80: 3.99
E81: Valor do BDI => | F81: 54.72 | H81: Valor com BDI => | J81: 273.61
A82: Observação
A83: R.: 92992 (SINAPI)
A85: 3.4 | B85: Código | C85: Banco | D85: Descrição | E85: Tipo | G85: Und | H85: Quant. | I85: Valor Unit | J85: Total
A86: Composição | B86: CP-ELE-04 | C86: Próprio | D86: CABO DE COBRE FLEXÍVEL ISOLADO, 70 MM², EPR OU XPLE, ANTI-CHAMA 20/35 KV, PARA REDE DE DISTRIBUIÇÃO DE ENERGIA ELÉTRICA - FORNECIMENTO E INSTALAÇÃO | E86: INEL - INSTALAÇÃO ELÉTRICA/ELETRIFICAÇÃO E ILUMINAÇÃO EXTERNA | G86: M | H86: 1 | I86: 183.38 | J86: 183.38
A87: Composição Auxiliar | B87: 88247 | C87: SINAPI | D87: AUXILIAR DE ELETRICISTA COM ENCARGOS COMPLEMENTARES | E87: SEDI - SERVIÇOS DIVERSOS | G87: H | H87: 0.1007 | I87: 19.2 | J87: 1.93
A88: Composição Auxiliar | B88: 88264 | C88: SINAPI | D88: ELETRICISTA COM ENCARGOS COMPLEMENTARES | E88: SEDI - SERVIÇOS DIVERSOS | G88: H | H88: 0.1007 | I88: 23.24 | J88: 2.34
A89: Insumo | B89: 00021127 | C89: SINAPI | D89: FITA ISOLANTE ADESIVA ANTICHAMA, USO ATE 750 V, EM ROLO DE 19 MM X 5 M | E89: Material | G89: UN | H89: 0.009 | I89: 3.47 | J89: 0.03
A90: Insumo | B90: 00000874 | C90: SINAPI | D90: CABO DE COBRE, RIGIDO, CLASSE 2, COMPACTADO, BLINDADO, ISOLACAO EM EPR OU XLPE, COBERTURA ANTICHAMA EM PVC, PEAD OU HFFR, 1 CONDUTOR, 20/35 KV, SECAO NOMINAL 70 MM2 | E90: Material | G90: M | H90: 1.015 | I90: 176.44 | J90: 179.08
E91: MO sem LS => | F91: 3.27 | G91: LS => | H91: 0 | I91: MO com LS => | J91: 3.27
E92: Valor do BDI => | F92: 45.84 | H92: Valor com BDI => | J92: 229.22
A93: Observação
A94: R.: 92990 (SINAPI)
A96: 3.5 | B96: Código | C96: Banco | D96: Descrição | E96: Tipo | G96: Und | H96: Quant. | I96: Valor Unit | J96: Total
A97: Composição | B97: CP-ELE-05 | C97: Próprio | D97: CABO DE COBRE FLEXÍVEL ISOLADO, 120 MM², EPR OU XPLE, ANTI-CHAMA 20/35 KV, PARA REDE DE DISTRIBUIÇÃO DE ENERGIA ELÉTRICA - FORNECIMENTO E INSTALAÇÃO | E97: INEL - INSTALAÇÃO ELÉTRICA/ELETRIFICAÇÃO E ILUMINAÇÃO EXTERNA | G97: M | H97: 1 | I97: 230.88 | J97: 230.88
A98: Composição Auxiliar | B98: 88247 | C98: SINAPI | D98: AUXILIAR DE ELETRICISTA COM ENCARGOS COMPLEMENTARES | E98: SEDI - SERVIÇOS DIVERSOS | G98: H | H98: 0.145 | I98: 19.2 | J98: 2.78
A99: Composição Auxiliar | B99: 88264 | C99: SINAPI | D99: ELETRICISTA COM ENCARGOS COMPLEMENTARES | E99: SEDI - SERVIÇOS DIVERSOS | G99: H | H99: 0.145 | I99: 23.24 | J99: 3.36
A100: Insumo | B100: 00021127 | C100: SINAPI | D100: FITA ISOLANTE ADESIVA ANTICHAMA, USO ATE 750 V, EM ROLO DE 19 MM X 5 M | E100: Material | G100: UN | H100: 0.009 | I100: 3.47 | J100: 0.03
A101: Insumo | B101: 00000876 | C101: SINAPI | D101: CABO DE COBRE, RIGIDO, CLASSE 2, COMPACTADO, BLINDADO, ISOLACAO EM EPR OU XLPE, COBERTURA ANTICHAMA EM PVC, PEAD OU HFFR, 1 CONDUTOR, 20/35 KV, SECAO NOMINAL 120 MM2 | E101: Material | G101: M | H101: 1.015 | I101: 221.39 | J101: 224.71
E102: MO sem LS => | F102: 4.72 | G102: LS => | H102: 0 | I102: MO com LS => | J102: 4.72
E103: Valor do BDI => | F103: 57.72 | H103: Valor com BDI => | J103: 288.6
A104: Observação
A105: R.: 92994 (SINAPI)
A107: 4.1 | B107: Código | C107: Banco | D107: Descrição | E107: Tipo | G107: Und | H107: Quant. | I107: Valor Unit | J107: Total
A108: Composição | B108: CP-ELE-06 | C108: Próprio | D108: ELETRODUTO FLEXIVEL, EM ACO GALVANIZADO, REVESTIDO EXTERNAMENTE COM PVC PRETO, DIAMETRO EXTERNO DE 90 MM (3"), TIPO SEALTUBO, PARA REDE DE DISTRIBUIÇÃO DE ENERGIA ELÉTRICA - FORNECIMENTO E INSTALAÇÃO. | E108: INEL - INSTALAÇÃO ELÉTRICA/ELETRIFICAÇÃO E ILUMINAÇÃO EXTERNA | G108: M | H108: 1 | I108: 78.71 | J108: 78.71
A109: Composição Auxiliar | B109: 88247 | C109: SINAPI | D109: AUXILIAR DE ELETRICISTA COM ENCARGOS COMPLEMENTARES | E109: SEDI - SERVIÇOS DIVERSOS | G109: H | H109: 0.1511 | I109: 19.2 | J109: 2.9
A110: Composição Auxiliar | B110: 88264 | C110: SINAPI | D110: ELETRICISTA COM ENCARGOS COMPLEMENTARES | E110: SEDI - SERVIÇOS DIVERSOS | G110: H | H110: 0.1511 | I110: 23.24 | J110: 3.51
A111: Insumo | B111: COT.03 | C111: Próprio | D111: ELETRODUTO FLEXIVEL, EM ACO GALVANIZADO, REVESTIDO EXTERNAMENTE COM PVC PRETO, DIAMETRO EXTERNO DE 90 MM (3"), TIPO SEALTUBO | E111: Material | G111: M | H111: 1.1 | I111: 65.73 | J111: 72.3 | K111: =VLOOKUP(B111,COTS_,4,FALSE) -> 65.73 | L111: =K111-I111 -> 0
E112: MO sem LS => | F112: 4.91 | G112: LS => | H112: 0 | I112: MO com LS => | J112: 4.91
E113: Valor do BDI => | F113: 19.67 | H113: Valor com BDI => | J113: 98.38
A114: Observação
A115: R.: SINAPI (97669)
A117: 4.2 | B117: Código | C117: Banco | D117: Descrição | E117: Tipo | G117: Und | H117: Quant. | I117: Valor Unit | J117: Total
A118: Composição | B118: CP-ELE-07 | C118: Próprio | D118: ORGANIZADOR DE FIOS E CABOS ESPIRAL 3\4". FORNECIMENTO E INSTALAÇÃO | E118: INEL - INSTALAÇÃO ELÉTRICA/ELETRIFICAÇÃO E ILUMINAÇÃO EXTERNA | G118: M | H118: 1 | I118: 10.77 | J118: 10.77
A119: Composição Auxiliar | B119: 88247 | C119: SINAPI | D119: AUXILIAR DE ELETRICISTA COM ENCARGOS COMPLEMENTARES | E119: SEDI - SERVIÇOS DIVERSOS | G119: H | H119: 0.034 | I119: 19.2 | J119: 0.65
A120: Composição Auxiliar | B120: 88264 | C120: SINAPI | D120: ELETRICISTA COM ENCARGOS COMPLEMENTARES | E120: SEDI - SERVIÇOS DIVERSOS | G120: H | H120: 0.034 | I120: 23.24 | J120: 0.79
A121: Insumo | B121: COT.04 | C121: Próprio | D121: ORGANIZADOR DE FIOS E CABOS ESPIRAL 3\4" | E121: Material | G121: M | H121: 1.015 | I121: 9.2 | J121: 9.33 | K121: =VLOOKUP(B121,COTS_,4,FALSE) -> 9.2 | L121: =K121-I121 -> 0
E122: MO sem LS => | F122: 1.1 | G122: LS => | H122: 0 | I122: MO com LS => | J122: 1.1
E123: Valor do BDI => | F123: 2.69 | H123: Valor com BDI => | J123: 13.46
A125: 4.3 | B125: Código | C125: Banco | D125: Descrição | E125: Tipo | G125: Und | H125: Quant. | I125: Valor Unit | J125: Total
A126: Composição | B126: CP-ELE-08 | C126: Próprio | D126: FITA ISOLANTE ADESIVA ANTICHAMA, EM ROLO DE 19 MM X 20 M. FORNECIMENTO E INSTALAÇÃO | E126: INEL - INSTALAÇÃO ELÉTRICA/ELETRIFICAÇÃO E ILUMINAÇÃO EXTERNA | G126: UND | H126: 1 | I126: 16.88 | J126: 16.88
A127: Composição Auxiliar | B127: 88247 | C127: SINAPI | D127: AUXILIAR DE ELETRICISTA COM ENCARGOS COMPLEMENTARES | E127: SEDI - SERVIÇOS DIVERSOS | G127: H | H127: 0.4 | I127: 19.2 | J127: 7.68
A128: Insumo | B128: 00020111 | C128: SINAPI | D128: FITA ISOLANTE ADESIVA ANTICHAMA, USO ATE 750 V, EM ROLO DE 19 MM X 20 M | E128: Material | G128: UN | H128: 1 | I128: 9.2 | J128: 9.2
E129: MO sem LS => | F129: 5.71 | G129: LS => | H129: 0 | I129: MO com LS => | J129: 5.71
E130: Valor do BDI => | F130: 4.22 | H130: Valor com BDI => | J130: 21.1
A131: Observação
A132: R.: AGESUL (1201007005)
A134: 4.4 | B134: Código | C134: Banco | D134: Descrição | E134: Tipo | G134: Und | H134: Quant. | I134: Valor Unit | J134: Total
A135: Composição | B135: 94226 | C135: SINAPI | D135: SUBCOBERTURA COM MANTA PLÁSTICA REVESTIDA POR PELÍCULA DE ALUMÍNO, INCLUSO TRANSPORTE VERTICAL. AF_07/2019 | E135: COBE - COBERTURA | G135: m² | H135: 1 | I135: 24.41 | J135: 24.41
A136: Composição Auxiliar | B136: 93281 | C136: SINAPI | D136: GUINCHO ELÉTRICO DE COLUNA, CAPACIDADE 400 KG, COM MOTO FREIO, MOTOR TRIFÁSICO DE 1,25 CV - CHP DIURNO. AF_03/2016 | E136: CHOR - CUSTOS HORÁRIOS DE MÁQUINAS E EQUIPAMENTOS | G136: CHP | H136: 0.0001 | I136: 17.74 | J136: 0
A137: Composição Auxiliar | B137: 93282 | C137: SINAPI | D137: GUINCHO ELÉTRICO DE COLUNA, CAPACIDADE 400 KG, COM MOTO FREIO, MOTOR TRIFÁSICO DE 1,25 CV - CHI DIURNO. AF_03/2016 | E137: CHOR - CUSTOS HORÁRIOS DE MÁQUINAS E EQUIPAMENTOS | G137: CHI | H137: 0.0002 | I137: 16.73 | J137: 0
A138: Composição Auxiliar | B138: 88316 | C138: SINAPI | D138: SERVENTE COM ENCARGOS COMPLEMENTARES | E138: SEDI - SERVIÇOS DIVERSOS | G138: H | H138: 0.184 | I138: 17.82 | J138: 3.27
A139: Composição Auxiliar | B139: 88323 | C139: SINAPI | D139: TELHADISTA COM ENCARGOS COMPLEMENTARES | E139: SEDI - SERVIÇOS DIVERSOS | G139: H | H139: 0.183 | I139: 21.93 | J139: 4.01
A140: Insumo | B140: 00042529 | C140: SINAPI | D140: FITA ADESIVA ALUMINIZADA, PARA INSTALACAO DE MANTAS DE SUBCOBERTURA, L = *5* CM | E140: Material | G140: M | H140: 0.88 | I140: 1.94 | J140: 1.7
A141: Insumo | B141: 00042528 | C141: SINAPI | D141: MANTA ALUMINIZADA NAS DUAS FACES, PARA SUBCOBERTURA, E = *2* MM | E141: Material | G141: m² | H141: 1.18 | I141: 13.08 | J141: 15.43
E142: MO sem LS => | F142: 5.52 | G142: LS => | H142: 0 | I142: MO com LS => | J142: 5.52
E143: Valor do BDI => | F143: 6.1 | H143: Valor com BDI => | J143: 30.51
A145: 4.6 | B145: Código | C145: Banco | D145: Descrição | E145: Tipo | G145: Und | H145: Quant. | I145: Valor Unit | J145: Total
A146: Composição | B146: CP-SPDA-04 | C146: Próprio | D146: TERMINAL A COMPRESSAO PARA CABO 95 MM2. FORNECIMENTO E INSTALAÇÃO | E146: INEL - INSTALAÇÃO ELÉTRICA/ELETRIFICAÇÃO E ILUMINAÇÃO EXTERNA | G146: UND | H146: 1 | I146: 8.93 | J146: 8.93
A147: Composição Auxiliar | B147: 88264 | C147: SINAPI | D147: ELETRICISTA COM ENCARGOS COMPLEMENTARES | E147: SEDI - SERVIÇOS DIVERSOS | G147: H | H147: 0.04 | I147: 23.24 | J147: 0.92
A148: Composição Auxiliar | B148: 88247 | C148: SINAPI | D148: AUXILIAR DE ELETRICISTA COM ENCARGOS COMPLEMENTARES | E148: SEDI - SERVIÇOS DIVERSOS | G148: H | H148: 0.033 | I148: 19.2 | J148: 0.63
A149: Insumo | B149: 00001580 | C149: SINAPI | D149: TERMINAL A COMPRESSAO EM COBRE ESTANHADO PARA CABO 95 MM2, 1 FURO E 1 COMPRESSAO, PARA PARAFUSO DE FIXACAO M12 | E149: Material | G149: UN | H149: 1 | I149: 7.38 | J149: 7.38
E150: MO sem LS => | F150: 1.2 | G150: LS => | H150: 0 | I150: MO com LS => | J150: 1.2
E151: Valor do BDI => | F151: 2.23 | H151: Valor com BDI => | J151: 11.16
A153: 4.7 | B153: Código | C153: Banco | D153: Descrição | E153: Tipo | G153: Und | H153: Quant. | I153: Valor Unit | J153: Total
A154: Composição | B154: CP-SPDA-05 | C154: Próprio | D154: TERMINAL A COMPRESSAO PARA CABO 50 MM2. FORNECIMENTO E INSTALAÇÃO | E154: INEL - INSTALAÇÃO ELÉTRICA/ELETRIFICAÇÃO E ILUMINAÇÃO EXTERNA | G154: UND | H154: 1 | I154: 6.35 | J154: 6.35
A155: Composição Auxiliar | B155: 88264 | C155: SINAPI | D155: ELETRICISTA COM ENCARGOS COMPLEMENTARES | E155: SEDI - SERVIÇOS DIVERSOS | G155: H | H155: 0.04 | I155: 23.24 | J155: 0.92
A156: Composição Auxiliar | B156: 88247 | C156: SINAPI | D156: AUXILIAR DE ELETRICISTA COM ENCARGOS COMPLEMENTARES | E156: SEDI - SERVIÇOS DIVERSOS | G156: H | H156: 0.033 | I156: 19.2 | J156: 0.63
A157: Insumo | B157: 00001578 | C157: SINAPI | D157: TERMINAL A COMPRESSAO EM COBRE ESTANHADO PARA CABO 50 MM2, 1 FURO E 1 COMPRESSAO, PARA PARAFUSO DE FIXACAO M8 | E157: Material | G157: UN | H157: 1 | I157: 4.8 | J157: 4.8
E158: MO sem LS => | F158: 1.2 | G158: LS => | H158: 0 | I158: MO com LS => | J158: 1.2
E159: Valor do BDI => | F159: 1.58 | H159: Valor com BDI => | J159: 7.93
A161: 4.8 | B161: Código | C161: Banco | D161: Descrição | E161: Tipo | G161: Und | H161: Quant. | I161: Valor Unit | J161: Total
A162: Composição | B162: CP-SPDA-06 | C162: Próprio | D162: TERMINAL A COMPRESSAO PARA CABO 25 MM2. FORNECIMENTO E INSTALAÇÃO | E162: INEL - INSTALAÇÃO ELÉTRICA/ELETRIFICAÇÃO E ILUMINAÇÃO EXTERNA | G162: UND | H162: 1 | I162: 4.01 | J162: 4.01
A163: Composição Auxiliar | B163: 88264 | C163: SINAPI | D163: ELETRICISTA COM ENCARGOS COMPLEMENTARES | E163: SEDI - SERVIÇOS DIVERSOS | G163: H | H163: 0.04 | I163: 23.24 | J163: 0.92
A164: Composição Auxiliar | B164: 88247 | C164: SINAPI | D164: AUXILIAR DE ELETRICISTA COM ENCARGOS COMPLEMENTARES | E164: SEDI - SERVIÇOS DIVERSOS | G164: H | H164: 0.033 | I164: 19.2 | J164: 0.63
A165: Insumo | B165: 00001576 | C165: SINAPI | D165: TERMINAL A COMPRESSAO EM COBRE ESTANHADO PARA CABO 25 MM2, 1 FURO E 1 COMPRESSAO, PARA PARAFUSO DE FIXACAO M8 | E165: Material | G165: UN | H165: 1 | I165: 2.46 | J165: 2.46
E166: MO sem LS => | F166: 1.2 | G166: LS => | H166: 0 | I166: MO com LS => | J166: 1.2
E167: Valor do BDI => | F167: 1 | H167: Valor com BDI => | J167: 5.01
A169: 4.9 | B169: Código | C169: Banco | D169: Descrição | E169: Tipo | G169: Und | H169: Quant. | I169: Valor Unit | J169: Total
A170: Composição | B170: CP-ELE-09 | C170: Próprio | D170: TERMINAL A COMPRESSAO PINO PARA CABO 120 MM2. FORNECIMENTO E INSTALAÇÃO | E170: INEL - INSTALAÇÃO ELÉTRICA/ELETRIFICAÇÃO E ILUMINAÇÃO EXTERNA | G170: UND | H170: 1 | I170: 32.9 | J170: 32.9
A171: Composição Auxiliar | B171: 88264 | C171: SINAPI | D171: ELETRICISTA COM ENCARGOS COMPLEMENTARES | E171: SEDI - SERVIÇOS DIVERSOS | G171: H | H171: 0.04 | I171: 23.24 | J171: 0.92
A172: Composição Auxiliar | B172: 88247 | C172: SINAPI | D172: AUXILIAR DE ELETRICISTA COM ENCARGOS COMPLEMENTARES | E172: SEDI - SERVIÇOS DIVERSOS | G172: H | H172: 0.033 | I172: 19.2 | J172: 0.63
A173: Insumo | B173: COT.05 | C173: Próprio | D173: TERMINAL PINO COMPRESSÃO 120 MM | E173: Material | G173: UND | H173: 1 | I173: 31.35 | J173: 31.35 | K173: =VLOOKUP(B173,COTS_,4,FALSE) -> 31.35 | L173: =K173-I173 -> 0
E174: MO sem LS => | F174: 1.2 | G174: LS => | H174: 0 | I174: MO com LS => | J174: 1.2
E175: Valor do BDI => | F175: 8.22 | H175: Valor com BDI => | J175: 41.12
A177: 4.10 | B177: Código | C177: Banco | D177: Descrição | E177: Tipo | G177: Und | H177: Quant. | I177: Valor Unit | J177: Total
A178: Composição | B178: CP-ELE-10 | C178: Próprio | D178: TERMINAL A COMPRESSAO PINO PARA CABO 95 MM2. FORNECIMENTO E INSTALAÇÃO | E178: INEL - INSTALAÇÃO ELÉTRICA/ELETRIFICAÇÃO E ILUMINAÇÃO EXTERNA | G178: UND | H178: 1 | I178: 35.67 | J178: 35.67
A179: Composição Auxiliar | B179: 88264 | C179: SINAPI | D179: ELETRICISTA COM ENCARGOS COMPLEMENTARES | E179: SEDI - SERVIÇOS DIVERSOS | G179: H | H179: 0.04 | I179: 23.24 | J179: 0.92
A180: Composição Auxiliar | B180: 88247 | C180: SINAPI | D180: AUXILIAR DE ELETRICISTA COM ENCARGOS COMPLEMENTARES | E180: SEDI - SERVIÇOS DIVERSOS | G180: H | H180: 0.033 | I180: 19.2 | J180: 0.63
A181: Insumo | B181: COT.08 | C181: Próprio | D181: TERMINAL PINO COMPRESSÃO 95 MM | E181: Material | G181: UND | H181: 1 | I181: 34.12 | J181: 34.12 | K181: =VLOOKUP(B181,COTS_,4,FALSE) -> 34.12 | L181: =K181-I181 -> 0
E182: MO sem LS => | F182: 1.2 | G182: LS => | H182: 0 | I182: MO com LS => | J182: 1.2
E183: Valor do BDI => | F183: 8.91 | H183: Valor com BDI => | J183: 44.58
A185: 4.11 | B185: Código | C185: Banco | D185: Descrição | E185: Tipo | G185: Und | H185: Quant. | I185: Valor Unit | J185: Total
A186: Composição | B186: CP-ELE-11 | C186: Próprio | D186: TERMINAL A COMPRESSAO PINO PARA CABO 25 MM2. FORNECIMENTO E INSTALAÇÃO | E186: INEL - INSTALAÇÃO ELÉTRICA/ELETRIFICAÇÃO E ILUMINAÇÃO EXTERNA | G186: UND | H186: 1 | I186: 4.67 | J186: 4.67
A187: Composição Auxiliar | B187: 88264 | C187: SINAPI | D187: ELETRICISTA COM ENCARGOS COMPLEMENTARES | E187: SEDI - SERVIÇOS DIVERSOS | G187: H | H187: 0.04 | I187: 23.24 | J187: 0.92
A188: Composição Auxiliar | B188: 88247 | C188: SINAPI | D188: AUXILIAR DE ELETRICISTA COM ENCARGOS COMPLEMENTARES | E188: SEDI - SERVIÇOS DIVERSOS | G188: H | H188: 0.033 | I188: 19.2 | J188: 0.63
A189: Insumo | B189: COT.06 | C189: Próprio | D189: TERMINAL PINO COMPRESSÃO 25 MM | E189: Material | G189: UND | H189: 1 | I189: 3.12 | J189: 3.12 | K189: =VLOOKUP(B189,COTS_,4,FALSE) -> 3.12 | L189: =K189-I189 -> 0
E190: MO sem LS => | F190: 1.2 | G190: LS => | H190: 0 | I190: MO com LS => | J190: 1.2
E191: Valor do BDI => | F191: 1.16 | H191: Valor com BDI => | J191: 5.83
A193: 4.12 | B193: Código | C193: Banco | D193: Descrição | E193: Tipo | G193: Und | H193: Quant. | I193: Valor Unit | J193: Total
A194: Composição | B194: CP-ELE-12 | C194: Próprio | D194: TERMINAL A COMPRESSAO PINO PARA CABO 6 MM2. FORNECIMENTO E INSTALAÇÃO | E194: INEL - INSTALAÇÃO ELÉTRICA/ELETRIFICAÇÃO E ILUMINAÇÃO EXTERNA | G194: UND | H194: 1 | I194: 2.3 | J194: 2.3
A195: Composição Auxiliar | B195: 88264 | C195: SINAPI | D195: ELETRICISTA COM ENCARGOS COMPLEMENTARES | E195: SEDI - SERVIÇOS DIVERSOS | G195: H | H195: 0.04 | I195: 23.24 | J195: 0.92
A196: Composição Auxiliar | B196: 88247 | C196: SINAPI | D196: AUXILIAR DE ELETRICISTA COM ENCARGOS COMPLEMENTARES | E196: SEDI - SERVIÇOS DIVERSOS | G196: H | H196: 0.033 | I196: 19.2 | J196: 0.63
A197: Insumo | B197: COT.07 | C197: Próprio | D197: TERMINAL PINO COMPRESSÃO 6 MM | E197: Material | G197: UND | H197: 1 | I197: 0.75 | J197: 0.75 | K197: =VLOOKUP(B197,COTS_,4,FALSE) -> 0.75 | L197: =K197-I197 -> 0
E198: MO sem LS => | F198: 1.2 | G198: LS => | H198: 0 | I198: MO com LS => | J198: 1.2
E199: Valor do BDI => | F199: 0.57 | H199: Valor com BDI => | J199: 2.87
A201: 4.13 | B201: Código | C201: Banco | D201: Descrição | E201: Tipo | G201: Und | H201: Quant. | I201: Valor Unit | J201: Total
A202: Composição | B202: 95818 | C202: SINAPI | D202: CONDULETE DE PVC, TIPO X, PARA ELETRODUTO DE PVC SOLDÁVEL DN 32 MM (1''), APARENTE - FORNECIMENTO E INSTALAÇÃO. AF_11/2016 | E202: INEL - INSTALAÇÃO ELÉTRICA/ELETRIFICAÇÃO E ILUMINAÇÃO EXTERNA | G202: UN | H202: 1 | I202: 37.9 | J202: 37.9
A203: Composição Auxiliar | B203: 88264 | C203: SINAPI | D203: ELETRICISTA COM ENCARGOS COMPLEMENTARES | E203: SEDI - SERVIÇOS DIVERSOS | G203: H | H203: 0.4872 | I203: 23.24 | J203: 11.32
A204: Composição Auxiliar | B204: 88247 | C204: SINAPI | D204: AUXILIAR DE ELETRICISTA COM ENCARGOS COMPLEMENTARES | E204: SEDI - SERVIÇOS DIVERSOS | G204: H | H204: 0.4872 | I204: 19.2 | J204: 9.35
A205: Insumo | B205: 00011950 | C205: SINAPI | D205: BUCHA DE NYLON SEM ABA S6, COM PARAFUSO DE 4,20 X 40 MM EM ACO ZINCADO COM ROSCA SOBERBA, CABECA CHATA E FENDA PHILLIPS | E205: Material | G205: UN | H205: 2 | I205: 0.24 | J205: 0.48
A206: Insumo | B206: 00039345 | C206: SINAPI | D206: CONDULETE EM PVC, TIPO "X", SEM TAMPA, DE 1" | E206: Material | G206: UN | H206: 1 | I206: 16.75 | J206: 16.75
E207: MO sem LS => | F207: 15.87 | G207: LS => | H207: 0 | I207: MO com LS => | J207: 15.87
E208: Valor do BDI => | F208: 9.47 | H208: Valor com BDI => | J208: 47.37
A210: 4.14 | B210: Código | C210: Banco | D210: Descrição | E210: Tipo | G210: Und | H210: Quant. | I210: Valor Unit | J210: Total
A211: Composição | B211: CP-ELE-13 | C211: Próprio | D211: TAMPA CEGA PARA CONDULETE DE PVC 4x2" - FORNECIMENTO E INSTALAÇÃO | E211: SEDI - SERVIÇOS DIVERSOS | G211: UN | H211: 1 | I211: 6.16 | J211: 6.16
A212: Composição Auxiliar | B212: 88264 | C212: SINAPI | D212: ELETRICISTA COM ENCARGOS COMPLEMENTARES | E212: SEDI - SERVIÇOS DIVERSOS | G212: H | H212: 0.03 | I212: 23.24 | J212: 0.69
A213: Composição Auxiliar | B213: 88247 | C213: SINAPI | D213: AUXILIAR DE ELETRICISTA COM ENCARGOS COMPLEMENTARES | E213: SEDI - SERVIÇOS DIVERSOS | G213: H | H213: 0.03 | I213: 19.2 | J213: 0.57
A214: Insumo | B214: 00007543 | C214: SINAPI | D214: TAMPA CEGA EM PVC PARA CONDULETE 4 X 2" | E214: Material | G214: UN | H214: 1 | I214: 4.9 | J214: 4.9
E215: MO sem LS => | F215: 0.96 | G215: LS => | H215: 0 | I215: MO com LS => | J215: 0.96
E216: Valor do BDI => | F216: 1.54 | H216: Valor com BDI => | J216: 7.7
A218: 4.15 | B218: Código | C218: Banco | D218: Descrição | E218: Tipo | G218: Und | H218: Quant. | I218: Valor Unit | J218: Total
A219: Composição | B219: CP-ELE-14 | C219: Próprio | D219: CURVA 135 GRAUS PARA ELETRODUTO, PVC, ROSCÁVEL, DN 32 MM (1''), PARA CIRCUITOS TERMINAIS. FORNECIMENTO E INSTALAÇÃO. | E219: INEL - INSTALAÇÃO ELÉTRICA/ELETRIFICAÇÃO E ILUMINAÇÃO EXTERNA | G219: UN | H219: 1 | I219: 13.12 | J219: 13.12
A220: Composição Auxiliar | B220: 88247 | C220: SINAPI | D220: AUXILIAR DE ELETRICISTA COM ENCARGOS COMPLEMENTARES | E220: SEDI - SERVIÇOS DIVERSOS | G220: H | H220: 0.239 | I220: 19.2 | J220: 4.58
A221: Composição Auxiliar | B221: 88264 | C221: SINAPI | D221: ELETRICISTA COM ENCARGOS COMPLEMENTARES | E221: SEDI - SERVIÇOS DIVERSOS | G221: H | H221: 0.239 | I221: 23.24 | J221: 5.55
A222: Insumo | B222: 00001880 | C222: SINAPI | D222: CURVA 135 GRAUS, DE PVC RIGIDO ROSCAVEL, DE 1", PARA ELETRODUTO | E222: Material | G222: UN | H222: 1 | I222: 2.99 | J222: 2.99
E223: MO sem LS => | F223: 7.78 | G223: LS => | H223: 0 | I223: MO com LS => | J223: 7.78
E224: Valor do BDI => | F224: 3.28 | H224: Valor com BDI => | J224: 16.4
A225: Observação
... 1052 more rows

Sheet CRONOGRAMA
A1: OBJETO- | B1: =RESUMO!B1 -> CRECHE - KIT DE GERAÇÃO DE ENERGIA SOLAR FOTOVOLTAICA - 123,75 kWp
A2: MUNICÍPIO- | B2: =RESUMO!B2 -> SÃO PEDRO DA CIPA - MT
A3: REFERÊNCIA- | B3: =RESUMO!B3 -> SINAPI/MT - 06/2022
A4: BDI- | B4: =RESUMO!B4 -> 0.25
A5: ENCARGOS- | B5: =RESUMO!B5 -> NÃO DESONERADO (Horista: 114,45% Mensalista: 72,21%)
A7: PLANILHA ORÇAMENTÁRIA - CRONOGRAMA FÍSICO E FINANCEIRO
A9: Item | B9: Descrição | C9: TOTAL (R$) | D9: PESO | E9: 30 DIAS
A10: 1 | B10: =VLOOKUP(A10,RES_SD,2,FALSE) -> KIT DE GERAÇÃO DE ENERGIA SOLAR FOTOVOLTAICA - 123,75 kWp | C10: =VLOOKUP(A10,RES_SD,3,FALSE) -> 389569.02 | D10: =C10/$C$20 -> 0.8336824478 | E10: 1
E11: =$C10*E10 -> 389569.02
A12: 2 | B12: =VLOOKUP(A12,RES_SD,2,FALSE) -> ATERRAMENTO | C12: =VLOOKUP(A12,RES_SD,3,FALSE) -> 3870.82 | D12: =C12/$C$20 -> 0.008283601947 | E12: 1
E13: 3870.82
A14: 3 | B14: =VLOOKUP(A14,RES_SD,2,FALSE) -> CABOS CA | C14: =VLOOKUP(A14,RES_SD,3,FALSE) -> 26701.1 | D14: =C14/$C$20 -> 0.05714067922 | E14: 1
E15: 26701.1
A16: 4 | B16: =VLOOKUP(A16,RES_SD,2,FALSE) -> ACESSÓRIOS E DISPOSITIVOS DE SOBREPOR E EMBUTIR | C16: =VLOOKUP(A16,RES_SD,3,FALSE) -> 41684.07 | D16: =C16/$C$20 -> 0.08920441752 | E16: 1
E17: 41684.07
A18: 5 | B18: =VLOOKUP(A18,RES_SD,2,FALSE) -> QUADRO DE DISTRIBUIÇÃO | C18: =VLOOKUP(A18,RES_SD,3,FALSE) -> 5462.05 | D18: =C18/$C$20 -> 0.01168885353 | E18: 1
E19: 5462.05
A20: Total Geral | C20: =SUBTOTAL(9,C10:C19) -> 467287.06 | D20: =SUBTOTAL(9,D10:D19) -> 1
A21: Porcentagem | E21: =SUM(E11,E13,E15,E17,E19)/$C$20 -> 1
A22: Custo | E22: =SUM(E11,E13,E15,E17,E19) -> 467287.06
A23: Porcentagem Acumulado | E23: =E21 -> 1
A24: Custo Acumulado | E24: =E22 -> 467287.06

Sheet CURVA ABC
A1: OBJETO - | B1: =RESUMO!B1 -> CRECHE - KIT DE GERAÇÃO DE ENERGIA SOLAR FOTOVOLTAICA - 123,75 kWp
A2: MUNICÍPIO - | B2: =RESUMO!B2 -> SÃO PEDRO DA CIPA - MT
A3: REFERÊNCIA - | B3: =RESUMO!B3 -> SINAPI/MT - 06/2022
A4: BDI - | B4: =RESUMO!B4 -> 0.25
A5: ENCARGOS - | B5: =RESUMO!B5 -> NÃO DESONERADO (Horista: 114,45% Mensalista: 72,21%)
A7: PLANILHA ORÇAMENTÁRIA - CURVA ABC DE SERVIÇOS
A8: TOTAL GERAL | I8: =I60 -> R$ 467.287,06
A11: 0.9 | B11: FAIXA A
A12: 0.95 | B12: FAIXA B
A13: 1 | B13: FAIXA C
A15: Código | B15: Banco | C15: Descrição | D15: Und | E15: Quant. | F15: Valor Unit | G15: Total | H15: Peso (%) | I15: Peso Acum. (%) | J15: Faixas de Corte
A16: CP-ES-01 | B16: Próprio | C16: KIT DE GERAÇÃO DE ENERGIA SOLAR FOTOVOLTAICA - 123,75 kWp | D16: UND | E16: 1,0 | F16: 389569.02 | G16: 389569.02 | H16: =G16/$I$8 -> 0.8336824478 | I16: =H16 -> 0.8336824478 | J16: =IF(I16<$A$11,"A",IF(I16<$A$12,"B","C")) -> A
A17: CP-ELE-05 | B17: Próprio | C17: CABO DE COBRE FLEXÍVEL ISOLADO, 120 MM², EPR OU XPLE, ANTI-CHAMA 20/35 KV, PARA REDE DE DISTRIBUIÇÃO DE ENERGIA ELÉTRICA - FORNECIMENTO E INSTALAÇÃO | D17: M | E17: 45,0 | F17: 288.6 | G17: 12987 | H17: =G17/$I$8 -> 0.02779233818 | I17: =I16+H17 -> 0.861474786 | J17: A
A18: 91868 | B18: SINAPI | C18: ELETRODUTO RÍGIDO ROSCÁVEL, PVC, DN 32 MM (1"), PARA CIRCUITOS TERMINAIS, INSTALADO EM LAJE - FORNECIMENTO E INSTALAÇÃO. AF_12/2015 | D18: M | E18: 750,0 | F18: 14.88 | G18: 11160 | H18: =G18/$I$8 -> 0.02388253593 | I18: =I17+H18 -> 0.8853573219 | J18: =IF(I18<$A$11,"A",IF(I18<$A$12,"B","C")) -> A
A19: CP-ALV-01 | B19: Próprio | C19: ABRIGO PARA EQUIPAMENTOS ELÉTRICOS, DIMENSÕES 2,00 X 2,20 X 1,20 M (LXAXP) | D19: UND | E19: 1,0 | F19: 9780.4 | G19: 9780.4 | H19: 0.02093017513 | I19: 0.906287497 | J19: B
A20: CP-ELE-04 | B20: Próprio | C20: CABO DE COBRE FLEXÍVEL ISOLADO, 70 MM², EPR OU XPLE, ANTI-CHAMA 20/35 KV, PARA REDE DE DISTRIBUIÇÃO DE ENERGIA ELÉTRICA - FORNECIMENTO E INSTALAÇÃO | D20: M | E20: 30,0 | F20: 229.22 | G20: 6876.6 | H20: 0.01471600776 | I20: 0.9210035048 | J20: B
A21: 95818 | B21: SINAPI | C21: CONDULETE DE PVC, TIPO X, PARA ELETRODUTO DE PVC SOLDÁVEL DN 32 MM (1''), APARENTE - FORNECIMENTO E INSTALAÇÃO. AF_11/2016 | D21: UN | E21: 130,0 | F21: 47.37 | G21: 6158.1 | H21: 0.01317840901 | I21: 0.9341819138 | J21: B
A22: CP-ELE-25 | B22: Próprio | C22: QUADRO DE COMANDO- CRECHE. FORNECIMENTO E INSTALAÇÃO | D22: UN | E22: 1,0 | F22: 5462.05 | G22: 5462.05 | H22: 0.01168885353 | I22: 0.9458707673 | J22: B
A23: CP-ELE-03 | B23: Próprio | C23: CABO DE COBRE FLEXÍVEL ISOLADO, 95 MM², EPR OU XPLE, ANTI-CHAMA 20/35 KV, PARA REDE DE DISTRIBUIÇÃO DE ENERGIA ELÉTRICA - FORNECIMENTO E INSTALAÇÃO | D23: M | E23: 15,0 | F23: 273.61 | G23: 4104.15 | H23: 0.008782930989 | I23: 0.9546536983 | J23: C
A24: CP-ELE-17 | B24: Próprio | C24: ABRAÇADEIRA TIPO "D" COM CUNHA, DIÂMETRO 1" - FORNECIMENTO E INSTALAÇÃO. | D24: UN | E24: 375,0 | F24: 9.06 | G24: 3397.5 | H24: 0.007270691382 | I24: 0.9619243897 | J24: C
A25: 96978 | B25: SINAPI | C25: CORDOALHA DE COBRE NU 70 MM², ENTERRADA, SEM ISOLADOR - FORNECIMENTO E INSTALAÇÃO. AF_12/2017 | D25: M | E25: 30,0 | F25: 107.48 | G25: 3224.4 | H25: 0.006900255273 | I25: 0.968824645 | J25: C
A26: CP-ELE-15 | B26: Próprio | C26: UNIDUT CÔNICO Ø 1" COM ARRUELA - FORNECIMENTO E INSTALAÇÃO | D26: UN | E26: 260,0 | F26: 7.57 | G26: 1968.2 | H26: 0.004211971973 | I26: 0.9730366169 | J26: C
A27: CP-ELE-02 | B27: Próprio | C27: CABO DE COBRE FLEXÍVEL ISOLADO, 50 MM², EPR OU XPLE, ANTI-CHAMA 20/35 KV, PARA REDE DE DISTRIBUIÇÃO DE ENERGIA ELÉTRICA - FORNECIMENTO E INSTALAÇÃO. | D27: M | E27: 10,0 | F27: 193.06 | G27: 1930.6 | H27: 0.004131507515 | I27: 0.9771681245 | J27: C
A28: 97887 | B28: SINAPI | C28: CAIXA ENTERRADA ELÉTRICA RETANGULAR, EM ALVENARIA COM TIJOLOS CERÂMICOS MACIÇOS, FUNDO COM BRITA, DIMENSÕES INTERNAS: 0,4X0,4X0,4 M. AF_12/2020 | D28: UN | E28: 6,0 | F28: 314.33 | G28: 1885.98 | H28: 0.004036020171 | I28: 0.9812041446 | J28: C
A29: 91880 | B29: SINAPI | C29: LUVA PARA ELETRODUTO, PVC, ROSCÁVEL, DN 32 MM (1"), PARA CIRCUITOS TERMINAIS, INSTALADA EM LAJE - FORNECIMENTO E INSTALAÇÃO. AF_12/2015 | D29: UN | E29: 126,0 | F29: 10.81 | G29: 1362.06 | H29: 0.00291482499 | I29: 0.9841189696 | J29: C
A30: CP-ELE-16 | B30: Próprio | C30: PARAFUSO E BUCHA MU 10MM, FORNECIMENTO E INSTALAÇÃO. | D30: UN | E30: 400,0 | F30: 2.65 | G30: 1060 | H30: 0.002268412911 | I30: 0.9863873825 | J30: C
A31: CP-ELE-13 | B31: Próprio | C31: TAMPA CEGA PARA CONDULETE DE PVC 4x2" - FORNECIMENTO E INSTALAÇÃO | D31: UN | E31: 130,0 | F31: 7.7 | G31: 1001 | H31: 0.002142152192 | I31: 0.9885295347 | J31: C
A32: CP-ELE-01 | B32: Próprio | C32: CABO DE COBRE FLEXÍVEL ISOLADO, 25 MM², EPR OU XPLE, ANTI-CHAMA 20/35 KV, PARA REDE DE DISTRIBUIÇÃO DE ENERGIA ELÉTRICA - FORNECIMENTO E INSTALAÇÃO. | D32: M | E32: 25,0 | F32: 32.11 | G32: 802.75 | H32: 0.001717894778 | I32: 0.9902474295 | J32: C
A33: CP-SPDA-01 | B33: Próprio | C33: HASTE DE ATERRAMENTO 5/8 PARA SPDA COM CONECTOR - FORNECIMENTO E INSTALAÇÃO. AF_12/2017 | D33: UN | E33: 6,0 | F33: 99.76 | G33: 598.56 | H33: 0.001280925691 | I33: 0.9915283552 | J33: C
A34: CP-ELE-06 | B34: Próprio | C34: ELETRODUTO FLEXIVEL, EM ACO GALVANIZADO, REVESTIDO EXTERNAMENTE COM PVC PRETO, DIAMETRO EXTERNO DE 90 MM (3"), TIPO SEALTUBO, PARA REDE DE DISTRIBUIÇÃO DE ENERGIA ELÉTRICA - FORNECIMENTO E INSTALAÇÃO. | D34: M | E34: 6,0 | F34: 98.38 | G34: 590.28 | H34: 0.00126320639 | I34: 0.9927915616 | J34: C
A35: 91905 | B35: SINAPI | C35: CURVA 90 GRAUS PARA ELETRODUTO, PVC, ROSCÁVEL, DN 32 MM (1"), PARA CIRCUITOS TERMINAIS, INSTALADA EM LAJE - FORNECIMENTO E INSTALAÇÃO. AF_12/2015 | D35: UN | E35: 20,0 | F35: 18.07 | G35: 361.4 | H35: 0.0007734004019 | I35: 0.993564962 | J35: C
A36: 93026 | B36: SINAPI | C36: CURVA 90 GRAUS PARA ELETRODUTO, PVC, ROSCÁVEL, DN 110 MM (4"), PARA REDE ENTERRADA DE DISTRIBUIÇÃO DE ENERGIA ELÉTRICA - FORNECIMENTO E INSTALAÇÃO. AF_12/2021 | D36: UN | E36: 4,0 | F36: 88.32 | G36: 353.28 | H36: 0.000756023503 | I36: 0.9943209855 | J36: C
A37: 97670 | B37: SINAPI | C37: ELETRODUTO FLEXÍVEL CORRUGADO, PEAD, DN 100 (4"), PARA REDE ENTERRADA DE DISTRIBUIÇÃO DE ENERGIA ELÉTRICA - FORNECIMENTO E INSTALAÇÃO. AF_12/2021 | D37: M | E37: 15,0 | F37: 23.41 | G37: 351.15 | H37: 0.000751465277 | I37: 0.9950724508 | J37: C
A38: CP-ELE-24 | B38: Próprio | C38: BARRA DE AÇO ROSCADA Ø1/4" 50 CM, INCLUSO PORCAS E ARRUELAS. FORNECIMENTO E INSTALAÇÃO | D38: UN | E38: 10,0 | F38: 27.85 | G38: 278.5 | H38: 0.0005959933922 | I38: 0.9956684441 | J38: C
A39: CP-ELE-10 | B39: Próprio | C39: TERMINAL A COMPRESSAO PINO PARA CABO 95 MM2. FORNECIMENTO E INSTALAÇÃO | D39: UND | E39: 6,0 | F39: 44.58 | G39: 267.48 | H39: 0.0005724104579 | I39: 0.9962408546 | J39: C
A40: CP-ELE-09 | B40: Próprio | C40: TERMINAL A COMPRESSAO PINO PARA CABO 120 MM2. FORNECIMENTO E INSTALAÇÃO | D40: UND | E40: 6,0 | F40: 41.12 | G40: 246.72 | H40: 0.0005279838051 | I40: 0.9967688384 | J40: C
A41: CP-ELE-22 | B41: Próprio | C41: PARAFUSO AUTOBROCANTE. FORNECIMENTO E INSTALAÇÃO. | D41: UND | E41: 200,0 | F41: 1.17 | G41: 234 | H41: 0.0005007628501 | I41: 0.9972696013 | J41: C
A42: CP-ELE-19 | B42: Próprio | C42: CONECTOR FÊMEA PARA SEALTUBO 3'' COM ARRUELA- FORNECIMENTO E INSTALAÇÃO | D42: UN | E42: 1,0 | F42: 173.97 | G42: 173.97 | H42: 0.000372297919 | I42: 0.9976418992 | J42: C
A43: CP-ELE-14 | B43: Próprio | C43: CURVA 135 GRAUS PARA ELETRODUTO, PVC, ROSCÁVEL, DN 32 MM (1''), PARA CIRCUITOS TERMINAIS. FORNECIMENTO E INSTALAÇÃO. | D43: UN | E43: 10,0 | F43: 16.4 | G43: 164 | H43: 0.0003509619975 | I43: 0.9979928612 | J43: C
A44: 94226 | B44: SINAPI | C44: SUBCOBERTURA COM MANTA PLÁSTICA REVESTIDA POR PELÍCULA DE ALUMÍNO, INCLUSO TRANSPORTE VERTICAL. AF_07/2019 | D44: m² | E44: 5,0 | F44: 30.51 | G44: 152.55 | H44: 0.0003264588581 | I44: 0.99831932 | J44: C
A45: CP-ELE-21 | B45: Próprio | C45: CONECTOR MACHO PARA SEALTUBO 3'' . FORNECIMENTO E INSTALAÇÃO | D45: UN | E45: 1,0 | F45: 145.97 | G45: 145.97 | H45: 0.0003123775779 | I45: 0.9986316976 | J45: C
A46: CP-ELE-20 | B46: Próprio | C46: ABRAÇADEIRA TIPO "D" COM CUNHA, DIÂMETRO 3" - FORNECIMENTO E INSTALAÇÃO. | D46: UN | E46: 6,0 | F46: 15.52 | G46: 93.12 | H46: 0.0001992779342 | I46: 0.9988309755 | J46: C
A47: CP-ELE-12 | B47: Próprio | C47: TERMINAL A COMPRESSAO PINO PARA CABO 6 MM2. FORNECIMENTO E INSTALAÇÃO | D47: UND | E47: 26,0 | F47: 2.87 | G47: 74.62 | H47: 0.0001596877089 | I47: 0.9989906633 | J47: C
A48: 95728 | B48: SINAPI | C48: ELETRODUTO RÍGIDO SOLDÁVEL, PVC, DN 32 MM (1"), APARENTE, INSTALADO EM TETO - FORNECIMENTO E INSTALAÇÃO. AF_11/2016 | D48: M | E48: 6,0 | F48: 11.41 | G48: 68.46 | H48: 0.0001465052338 | I48: 0.9991371685 | J48: C
A49: CP-SPDA-04 | B49: Próprio | C49: TERMINAL A COMPRESSAO PARA CABO 95 MM2. FORNECIMENTO E INSTALAÇÃO | D49: UND | E49: 6,0 | F49: 11.16 | G49: 66.96 | H49: 0.0001432952156 | I49: 0.9992804637 | J49: C
A50: CP-SPDA-03 | B50: Próprio | C50: TERMINAL A COMPRESSAO PARA CABO 70 MM2. FORNECIMENTO E INSTALAÇÃO | D50: UND | E50: 7,0 | F50: 9.42 | G50: 65.94 | H50: 0.0001411124032 | I50: 0.9994215761 | J50: C
A51: CP-ELE-23 | B51: Próprio | C51: PARAFUSO DE ACO TIPO CHUMBADOR PARABOLT, DIAMETRO 3/8". FORNECIMENTO E INSTALAÇÃO | D51: UN | E51: 10,0 | F51: 5.91 | G51: 59.1 | H51: 0.0001264747198 | I51: 0.9995480508 | J51: C
A52: CP-ELE-07 | B52: Próprio | C52: ORGANIZADOR DE FIOS E CABOS ESPIRAL 3\4". FORNECIMENTO E INSTALAÇÃO | D52: M | E52: 4,0 | F52: 13.46 | G52: 53.84 | H52: 0.0001152182558 | I52: 0.9996632691 | J52: C
A53: CP-SPDA-06 | B53: Próprio | C53: TERMINAL A COMPRESSAO PARA CABO 25 MM2. FORNECIMENTO E INSTALAÇÃO | D53: UND | E53: 10,0 | F53: 5.01 | G53: 50.1 | H53: 0.0001072146102 | I53: 0.9997704837 | J53: C
A54: CP-SPDA-02 | B54: Próprio | C54: CAIXA DE INSPEÇÃO PARA ATERRAMENTO, CIRCULAR, EM POLIETILENO, DIÂMETRO INTERNO ATÉ Ø0,20 M. FORNECIMENTO E INSTALAÇÃO | D54: UN | E54: 2,0 | F54: 19.22 | G54: 38.44 | H54: 8.22620682e-05 | I54: 0.9998527458 | J54: C
A55: CP-ELE-11 | B55: Próprio | C55: TERMINAL A COMPRESSAO PINO PARA CABO 25 MM2. FORNECIMENTO E INSTALAÇÃO | D55: UND | E55: 6,0 | F55: 5.83 | G55: 34.98 | H55: 7.485762606e-05 | I55: 0.9999276034 | J55: C
A56: CP-SPDA-05 | B56: Próprio | C56: TERMINAL A COMPRESSAO PARA CABO 50 MM2. FORNECIMENTO E INSTALAÇÃO | D56: UND | E56: 4,0 | F56: 7.93 | G56: 31.72 | H56: 6.788118635e-05 | I56: 0.9999954846 | J56: C
A57: CP-ELE-08 | B57: Próprio | C57: FITA ISOLANTE ADESIVA ANTICHAMA, EM ROLO DE 19 MM X 20 M. FORNECIMENTO E INSTALAÇÃO | D57: UND | E57: 0,1 | F57: 21.1 | G57: 2.11 | H57: 4.5154257e-06 | I57: 1 | J57: C
A58: Total sem BDI | I58: =RESUMO!C17 -> 373838.49
A59: Total do BDI | I59: =RESUMO!C18 -> 93448.57
A60: Total Geral | I60: R$ 467.287,06

Sheet COMPOSIÇÃO BDI
A1: OBJETO - | B1: =RESUMO!B1 -> CRECHE - KIT DE GERAÇÃO DE ENERGIA SOLAR FOTOVOLTAICA - 123,75 kWp
A2: MUNICÍPIO - | B2: =RESUMO!B2 -> SÃO PEDRO DA CIPA - MT
A3: REFERÊNCIA - | B3: =RESUMO!B3 -> SINAPI/MT - 06/2022 | H3: 28.95
A4: BDI - | B4: =RESUMO!B4 -> 0.25
A5: ENCARGOS - | B5: =RESUMO!B5 -> NÃO DESONERADO (Horista: 114,45% Mensalista: 72,21%)
A7: COMPOSIÇÃO DA PARCELA DE BDI (BONIFICAÇÕES E DESPESAS INDIRETAS)
A8: Resolução Normativa 018/2017 com base no Acórdão do TCU 2622/2013 | H8: BDI DIFERENCIADO (Acórdão 2622/2013 - TCU) | K8: LIMITES RECOMENDADOS | O8: BDI DIFERENCIADO - LIMITES RECOMENDADOS
A9: HIPOTESE 1 | E9: HIPOTESE 2
A10: COM DESONERAÇÃO DE MÃO DE OBRA | E10: SEM DESONERAÇÃO DE MÃO DE OBRA
A11: ITENS RELATIVOS À ADMINISTRAÇÃO CENTRAL | D11: % SOBRE PV | E11: ITENS RELATIVOS À ADMINISTRAÇÃO CENTRAL | F11: % SOBRE PV | H11: ITENS RELATIVOS À ADMINISTRAÇÃO CENTRAL | J11: % SOBRE PV | K11: 1º QUARTIL | L11: MÉDIO QUARTIL | M11: 3º QUARTIL | N11: ATENDE AOS LIMITES | O11: 1º QUARTIL | P11: MÉDIO QUARTIL | Q11: 3º QUARTIL | R11: ATENDE AOS LIMITES
A12: AC - Administração Central | D12: 0.0494 | E12: AC - Administração Central | F12: 0.0494 | H12: AC - Administração Central | J12: 0.0345 | K12: 0.03 | L12: 0.04 | M12: 0.055 | N12: SIM | O12: 0.015 | P12: 0.0345 | Q12: 0.0449 | R12: SIM
A13: DF - Custos Financeiros | D13: 0.0139 | E13: DF - Custos Financeiros | F13: 0.0139 | H13: DF - Custos Financeiros | J13: 0.0085 | K13: 0.0059 | L13: 0.0123 | M13: 0.0139 | N13: SIM | O13: 0.0085 | P13: 0.0085 | Q13: 0.0111 | R13: SIM
A14: C - Riscos | D14: 0.0127 | E14: C - Riscos | F14: 0.0127 | H14: C - Riscos | J14: 0.0085 | K14: 0.0097 | L14: 0.0127 | M14: 0.0127 | N14: SIM | O14: 0.0056 | P14: 0.0085 | Q14: 0.0089 | R14: SIM
A15: S - Seguros e Garantias Contratuais | D15: 0.01 | E15: S - Seguros e Garantias Contratuais | F15: 0.01 | H15: S - Seguros e Garantias Contratuais | J15: 0.0048 | K15: 0.008 | L15: 0.008 | M15: 0.01 | N15: SIM | O15: 0.003 | P15: 0.0048 | Q15: 0.0082 | R15: SIM
A16: LO - Lucro Operacional | D16: 0.085 | E16: LO - Lucro Operacional | F16: 0.085 | H16: LO - Lucro Operacional | J16: 0.0511 | K16: 0.0616 | L16: 0.074 | M16: 0.0896 | N16: SIM | O16: 0.035 | P16: 0.0511 | Q16: 0.0622 | R16: SIM
A17: TAXAS E IMPOSTOS | D17: % SOBRE PV | E17: TAXAS E IMPOSTOS | F17: % SOBRE PV | H17: TAXAS E IMPOSTOS | J17: % SOBRE PV | K17: TAXAS E IMPOSTOS | O17: TAXAS E IMPOSTOS
A18: F - PIS | D18: 0.0065 | E18: F - PIS | F18: 0.0065 | H18: F - PIS | J18: 0.0065 | K18: VARIÁVEL | O18: VARIÁVEL
A19: G - COFINS | D19: 0.03 | E19: G - COFINS | F19: 0.03 | H19: G - COFINS | J19: 0.03
A20: H - ISSQN | D20: =$D$25*$F$25 -> 0.02 | E20: H - ISSQN | F20: 0.02 | H20: H - ISSQN (LEI COMPLEMENTAR Nº 043/1997 DE 23 DE DEZEMBRO DE 1997, E SUAS ALTERAÇÕES - CUIABÁ | J20: 0
A21: Contribuição Previdenciária - Lei N° 13.161/15 | D21: 0.045 | E21: Contribuição Previdenciária - Lei N° 13.161/15 | F21: - | H21: Contribuição Previdenciária - Lei N° 13.161/15 | J21: - | K21: LIMITES BDI COM IMPOSTOS | O21: LIMITES BDI COM IMPOSTOS
D22: =SUM(D18:D21) -> 0.1015 | F22: =SUM(F18:F21) -> 0.0565 | I22: Sub-total | J22: =SUM(J18:J21) -> 0.0365 | K22: MÍNIMO | M22: MÁXIMO | O22: MÍNIMO | Q22: MÁXIMO
A23: BDI COM IMPOSTOS | D23: =ROUND(((((1+D12+D14+D15)*(1+D13)*(1+D16))/(1-D22))-1),4) -> 0.3126 | E23: BDI SEM IMPOSTOS | F23: =ROUND(((((1+F12+F14+F15)*(1+F13)*(1+F16))/(1-F22))-1),4) -> 0.25 | H23: BDI COM IMPOSTOS | J23: =ROUND(((((1+J12+J14+J15)*(1+J13)*(1+J16))/(1-J22))-1),4) -> 0.1528 | K23: =ROUND(((((1+K12+K14+K15)*(1+K13)*(1+K16))/(1-F22))-1),4) -> 0.1858 | M23: =ROUND(((((1+M12+M14+M15)*(1+M13)*(1+M16))/(1-F22))-1),4) -> 0.2619 | O23: =ROUND(((((1+O12+O14+O15)*(1+O13)*(1+O16))/(1-J22))-1),4) -> 0.1089 | Q23: =ROUND(((((1+Q12+Q14+Q15)*(1+Q13)*(1+Q16))/(1-J22))-1),4) -> 0.1838
A24: FÓRMULA DO BDI
A25: Localidade / alíquota ISSQN | D25: 0.05 | E25: % sobre a Mão de Obra | F25: 0.4
A37: LO - LUCRO OPERACIONAL
A38: USAR | E38: 0.079
E39: 0.084
A97: Lei Complementar nº 105 de 23/12/2003

Sheet ENCARGOS SOCIAIS
A1: OBJETO - | B1: =RESUMO!B1 -> CRECHE - KIT DE GERAÇÃO DE ENERGIA SOLAR FOTOVOLTAICA - 123,75 kWp
A2: MUNICÍPIO - | B2: =RESUMO!B2 -> SÃO PEDRO DA CIPA - MT
A3: REFERÊNCIA - | B3: =RESUMO!B3 -> SINAPI/MT - 06/2022
A4: BDI - | B4: =RESUMO!B4 -> 0.25
A5: ENCARGOS - | B5: =RESUMO!B5 -> NÃO DESONERADO (Horista: 114,45% Mensalista: 72,21%)
A7: ENCARGOS SOCIAIS SOBRE A MÃO DE OBRA
A8: Resolução Normativa 018/2017 com base no Acórdão do TCU 2622/2013
A9: MATO GROSSO | D9: VIGÊNCIA A PARTIR DE 10/2021
A11: CÓDIGO | B11: DESCRIÇÃO | C11: COM DESONERAÇÃO | E11: SEM DESONERAÇÃO
C12: HORISTA (%) | D12: MENSALISTA (%) | E12: HORISTA (%) | F12: MENSALISTA (%)
A13: GRUPO A
A14: A1 | B14: INSS | C14: 0 | D14: 0 | E14: 0.2 | F14: 0.2
A15: A2 | B15: SESI | C15: 0.015 | D15: 0.015 | E15: 0.015 | F15: 0.015
A16: A3 | B16: SENAI | C16: 0.01 | D16: 0.01 | E16: 0.01 | F16: 0.01
A17: A4 | B17: INCRA | C17: 0.002 | D17: 0.002 | E17: 0.002 | F17: 0.002
A18: A5 | B18: SEBRAE | C18: 0.006 | D18: 0.006 | E18: 0.006 | F18: 0.006
A19: A6 | B19: Salario Educação | C19: 0.025 | D19: 0.025 | E19: 0.025 | F19: 0.025
A20: A7 | B20: Seguro Contra Acidentes de Trabalho | C20: 0.03 | D20: 0.03 | E20: 0.03 | F20: 0.03
A21: A8 | B21: FGTS | C21: 0.08 | D21: 0.08 | E21: 0.08 | F21: 0.08
A22: A9 | B22: SECONCI | C22: 0 | D22: 0 | E22: 0 | F22: 0
A23: A | B23: Total | C23: =SUM(C14:C22) -> 0.168 | D23: =SUM(D14:D22) -> 0.168 | E23: =SUM(E14:E22) -> 0.368 | F23: =SUM(F14:F22) -> 0.368
A24: GRUPO B
A25: B1 | B25: Repouso Semanal Remunerado | C25: 0.1777 | D25: Não incide | E25: 0.1777 | F25: Não incide
A26: B2 | B26: Feriados | C26: 0.0367 | D26: Não incide | E26: 0.0367 | F26: Não incide
A27: B3 | B27: Auxilio - Enfermidade | C27: 0.0087 | D27: =0.66/100 -> 0.0066 | E27: 0.0087 | F27: 0.0066
A28: B4 | B28: 13º Salario | C28: 0.11 | D28: 0.0833 | E28: 0.11 | F28: 0.0833
A29: B5 | B29: Licença Paternidade | C29: 0.0007 | D29: =0.06/100 -> 0.0006 | E29: =0.07/100 -> 0.0007 | F29: 0.0006
A30: B6 | B30: Faltas Justificadas | C30: =0.73/100 -> 0.0073 | D30: =0.56/100 -> 0.0056 | E30: =0.73/100 -> 0.0073 | F30: 0.0056
A31: B7 | B31: Dias de chuvas | C31: 0.0117 | D31: Não incide | E31: 0.0117 | F31: Não incide
A32: B8 | B32: Auxílio Acidente de Trabalho | C32: 0.0011 | D32: 0.0008 | E32: 0.0011 | F32: 0.0008
A33: B9 | B33: Férias Gozadas | C33: 0.1267 | D33: 0.096 | E33: 0.1267 | F33: 0.096
A34: B10 | B34: Salário Maternidade | C34: 0.0003 | D34: =0.02/100 -> 0.0002 | E34: 0.0003 | F34: 0.0002
A35: B | B35: Total | C35: =SUM(C25:C34) -> 0.4809 | D35: =SUM(D25:D34) -> 0.1931 | E35: =SUM(E25:E34) -> 0.4809 | F35: =SUM(F25:F34) -> 0.1931
A36: GRUPO C
A37: C1 | B37: Aviso Prévio Indenizado | C37: 0.06 | D37: 0.0455 | E37: 0.06 | F37: 0.0455
A38: C2 | B38: Aviso Prévio Trabalhado | C38: 0.0014 | D38: 0.0011 | E38: 0.0014 | F38: 0.0011
A39: C3 | B39: Férias Indenizadas | C39: 0.0165 | D39: 0.0125 | E39: 0.0165 | F39: 0.0125
A40: C4 | B40: Depósito Rescisão Sem Justa Causa | C40: 0.0303 | D40: 0.023 | E40: 0.0303 | F40: 0.023
A41: C5 | B41: Indenização Adicional | C41: =0.51/100 -> 0.0051 | D41: 0.0038 | E41: =0.51/100 -> 0.0051 | F41: 0.0038
A42: C | B42: Total | C42: =SUM(C37:C41) -> 0.1133 | D42: =SUM(D37:D41) -> 0.0859 | E42: =SUM(E37:E41) -> 0.1133 | F42: =SUM(F37:F41) -> 0.0859
A43: GRUPO D
A44: D1 | B44: Reincidência de Grupo A Sobre Grupo B | C44: 0.0808 | D44: 0.0324 | E44: 0.177 | F44: 0.0711
A45: D2 | B45: Reincidência de Grupo A Sobre Aviso Prévio Trabalhado e Reincidência do FGTS Sobre Aviso Prévio Indenizado | C45: 0.005 | D45: 0.0038 | E45: =0.53/100 -> 0.0053 | F45: 0.004
A46: D | B46: Total | C46: =SUM(C44:C45) -> 0.0858 | D46: =SUM(D44:D45) -> 0.0362 | E46: =SUM(E44:E45) -> 0.1823 | F46: =SUM(F44:F45) -> 0.0751
A47: TOTAL (A+B+C+D) | C47: =(C46)+(C42)+(C35)+C23 -> 0.848 | D47: =(D46)+(D42)+(D35)+D23 -> 0.4832 | E47: =(E46)+(E42)+(E35)+E23 -> 1.1445 | F47: =(F46)+(F42)+(F35)+F23 -> 0.7221

Sheet MAPA DE COTAÇÕES
A1: OBJETO - | B1: =RESUMO!B1 -> CRECHE - KIT DE GERAÇÃO DE ENERGIA SOLAR FOTOVOLTAICA - 123,75 kWp
A2: MUNICÍPIO - | B2: =RESUMO!B2 -> SÃO PEDRO DA CIPA - MT
A3: REFERÊNCIA - | B3: =RESUMO!B3 -> SINAPI/MT - 06/2022
A4: BDI - | B4: =RESUMO!B4 -> 0.25
A5: ENCARGOS - | B5: =RESUMO!B5 -> NÃO DESONERADO (Horista: 114,45% Mensalista: 72,21%)
A7: MAPA DE COTAÇÕES - ANALÍTICO
A9: Código | B9: Descrição do Item | C9: Und | D9: Data | E9: Preço Unitário | F9: Preço Mediano | G9: CNPJ do Fornecedor | H9: Fornecedor
A10: COT.01 | B10: CAIXA DE INSPEÇÃO N3 180X140MM | C10: unid. | D10: 44785 | E10: 9.04 | G10: 07.624.206/0001-31 | H10: BRANEL ComÈrcio de Materiais ElÈtricos \\ (65)3027-9000 \\ Ricardo
A11: COT.01 | B11: CAIXA DE INSPEÇÃO N3 180X140MM | C11: unid. | D11: 44785 | E11: 9 | F11: 9 | G11: 04.181.115/0001-80 | H11: PIZZATTO \\ (65)3052-4200 \\ Leandro
A12: COT.01 | B12: CAIXA DE INSPEÇÃO N3 180X140MM | C12: unid. | D12: 44785 | E12: 4.5 | G12: 15.987.913/0001-10 | H12: TUDO HIDRAULICA E ELETRICA \\ 65-3321-0009 \\ Matheus Roldao
A13: COT.02 | B13: CABO DE COBRE, RIGIDO, ISOLACAO EM EPR OU XLPE, COBERTURA ANTICHAMA EM PVC, PEAD OU HFFR, 1 CONDUTOR, 20/35 KV, SECAO NOMINAL 25 MM2 - (SUGERIDO - CABO ISOL.1KV 25.0 MM2 PRETO) | C13: m | D13: 44785 | E13: 35.29 | G13: 06.110.817/0004-41 | H13: ATIVA MATERIAIS ELETRICOS LTDA \\ (65)3051-7844 \\ José Ta Bosa
A14: COT.02 | B14: CABO DE COBRE, RIGIDO, ISOLACAO EM EPR OU XLPE, COBERTURA ANTICHAMA EM PVC, PEAD OU HFFR, 1 CONDUTOR, 20/35 KV, SECAO NOMINAL 25 MM2 - (SUGERIDO - CABO ISOL.1KV 25.0 MM2 PRETO) | C14: m | D14: 44785 | E14: 22.75 | F14: 22.75 | G14: 04.181.115/0001-80 | H14: PIZZATTO \\ (65)3052-4200 \\ Leandro
A15: COT.02 | B15: CABO DE COBRE, RIGIDO, ISOLACAO EM EPR OU XLPE, COBERTURA ANTICHAMA EM PVC, PEAD OU HFFR, 1 CONDUTOR, 20/35 KV, SECAO NOMINAL 25 MM2 - (SUGERIDO - CABO ISOL.1KV 25.0 MM2 PRETO) | C15: m | D15: 44785 | E15: 21.2 | G15: 15.987.913/0001-10 | H15: TUDO HIDRAULICA E ELETRICA \\ 65-3321-0009 \\ Matheus Roldao
A16: COT.03 | B16: ELETRODUTO FLEXIVEL, EM ACO GALVANIZADO, REVESTIDO EXTERNAMENTE COM PVC PRETO, DIAMETRO EXTERNO DE 90 MM (3"), TIPO SEALTUBO | C16: m | D16: 44785 | E16: 68 | G16: 15.987.913/0001-10 | H16: TUDO HIDRAULICA E ELETRICA \\ 65-3321-0009 \\ Matheus Roldao
A17: COT.03 | B17: ELETRODUTO FLEXIVEL, EM ACO GALVANIZADO, REVESTIDO EXTERNAMENTE COM PVC PRETO, DIAMETRO EXTERNO DE 90 MM (3"), TIPO SEALTUBO | C17: m | D17: 44785 | E17: 62.95 | G17: 07.237.858/0001-13 | H17: COTELETRICA MATERIAIS ELETRICOS \\ (65) 3025-4300 \\ Patriane Mendes
A18: COT.03 | B18: ELETRODUTO FLEXIVEL, EM ACO GALVANIZADO, REVESTIDO EXTERNAMENTE COM PVC PRETO, DIAMETRO EXTERNO DE 90 MM (3"), TIPO SEALTUBO | C18: m | D18: 44785 | E18: 65.73 | F18: 65.73 | G18: 07.624.206/0001-31 | H18: BRANEL ComÈrcio de Materiais ElÈtricos \\ (65)3027-9000 \\ Ricardo
A19: COT.04 | B19: ORGANIZADOR DE FIOS E CABOS ESPIRAL 3\4" | C19: m | D19: 44785 | E19: 9.2 | F19: 9.2 | G19: 04.181.115/0001-80 | H19: PIZZATTO \\ (65)3052-4200 \\ Leandro
A20: COT.04 | B20: ORGANIZADOR DE FIOS E CABOS ESPIRAL 3\4" | C20: m | D20: 44785 | E20: 10 | G20: 15.987.913/0001-10 | H20: TUDO HIDRAULICA E ELETRICA \\ 65-3321-0009 \\ Matheus Roldao
A21: COT.04 | B21: ORGANIZADOR DE FIOS E CABOS ESPIRAL 3\4" | C21: m | D21: 44785 | E21: 8.29 | G21: 07.237.858/0001-13 | H21: COTELETRICA MATERIAIS ELETRICOS \\ (65) 3025-4300 \\ Patriane Mendes
A22: COT.05 | B22: TERMINAL PINO COMPRESSÃO 120 MM | C22: unid. | D22: 44785 | E22: 31.35 | F22: 31.35 | G22: 15.987.913/0001-10 | H22: TUDO HIDRAULICA E ELETRICA \\ 65-3321-0009 \\ Matheus Roldao
A23: COT.05 | B23: TERMINAL PINO COMPRESSÃO 120 MM | C23: unid. | D23: 44785 | E23: 16.86 | G23: 07.237.858/0001-13 | H23: COTELETRICA MATERIAIS ELETRICOS \\ (65) 3025-4300 \\ Patriane Mendes
A24: COT.05 | B24: TERMINAL PINO COMPRESSÃO 120 MM | C24: unid. | D24: 44785 | E24: 36.3 | G24: 07.624.206/0001-31 | H24: BRANEL ComÈrcio de Materiais ElÈtricos \\ (65)3027-9000 \\ Ricardo
A25: COT.06 | B25: TERMINAL PINO COMPRESSÃO 25 MM | C25: unid. | D25: 44785 | E25: 2.7 | G25: 15.987.913/0001-10 | H25: TUDO HIDRAULICA E ELETRICA \\ 65-3321-0009 \\ Matheus Roldao
A26: COT.06 | B26: TERMINAL PINO COMPRESSÃO 25 MM | C26: unid. | D26: 44785 | E26: 3.12 | F26: 3.12 | G26: 07.237.858/0001-13 | H26: COTELETRICA MATERIAIS ELETRICOS \\ (65) 3025-4300 \\ Patriane Mendes
A27: COT.06 | B27: TERMINAL PINO COMPRESSÃO 25 MM | C27: unid. | D27: 44785 | E27: 12.08 | G27: 07.624.206/0001-31 | H27: BRANEL ComÈrcio de Materiais ElÈtricos \\ (65)3027-9000 \\ Ricardo
A28: COT.07 | B28: TERMINAL PINO COMPRESSÃO 6 MM | C28: unid. | D28: 44785 | E28: 0.83 | G28: 15.987.913/0001-10 | H28: TUDO HIDRAULICA E ELETRICA \\ 65-3321-0009 \\ Matheus Roldao
A29: COT.07 | B29: TERMINAL PINO COMPRESSÃO 6 MM | C29: unid. | D29: 44785 | E29: 0.22 | G29: 07.237.858/0001-13 | H29: COTELETRICA MATERIAIS ELETRICOS \\ (65) 3025-4300 \\ Patriane Mendes
A30: COT.07 | B30: TERMINAL PINO COMPRESSÃO 6 MM | C30: unid. | D30: 44785 | E30: 0.75 | F30: 0.75 | G30: 07.624.206/0001-31 | H30: BRANEL ComÈrcio de Materiais ElÈtricos \\ (65)3027-9000 \\ Ricardo
A31: COT.08 | B31: TERMINAL PINO COMPRESSÃO 95 MM | C31: unid. | D31: 44785 | E31: 49 | G31: 15.987.913/0001-10 | H31: TUDO HIDRAULICA E ELETRICA \\ 65-3321-0009 \\ Matheus Roldao
A32: COT.08 | B32: TERMINAL PINO COMPRESSÃO 95 MM | C32: unid. | D32: 44785 | E32: 11.78 | G32: 07.237.858/0001-13 | H32: COTELETRICA MATERIAIS ELETRICOS \\ (65) 3025-4300 \\ Patriane Mendes
A33: COT.08 | B33: TERMINAL PINO COMPRESSÃO 95 MM | C33: unid. | D33: 44785 | E33: 34.12 | F33: 34.12 | G33: 07.624.206/0001-31 | H33: BRANEL ComÈrcio de Materiais ElÈtricos \\ (65)3027-9000 \\ Ricardo
A34: COT.09 | B34: PARAF PHILIPS Nº 10 + BUCHA FIXACAO Nº 10 C.ANEL | C34: unid. | D34: 44785 | E34: 1.65 | G34: 04.181.115/0001-80 | H34: PIZZATTO \\ (65)3052-4200 \\ Leandro
A35: COT.09 | B35: PARAF PHILIPS Nº 10 + BUCHA FIXACAO Nº 10 C.ANEL | C35: unid. | D35: 44785 | E35: 0.75 | G35: 15.987.913/0001-10 | H35: TUDO HIDRAULICA E ELETRICA \\ 65-3321-0009 \\ Matheus Roldao
A36: COT.09 | B36: PARAF PHILIPS Nº 10 + BUCHA FIXACAO Nº 10 C.ANEL | C36: unid. | D36: 44785 | E36: 1.36 | F36: 1.36 | G36: 07.237.858/0001-13 | H36: COTELETRICA MATERIAIS ELETRICOS \\ (65) 3025-4300 \\ Patriane Mendes
A37: COT.10 | B37: CONECTOR FÊMEA GIRATORIO PARA SEALTUBO 3'' | C37: unid. | D37: 44785 | E37: 157.12 | G37: 06.110.817/0004-41 | H37: ATIVA MATERIAIS ELETRICOS LTDA \\ (65)3051-7844 \\ José Ta Bosa
A38: COT.10 | B38: CONECTOR FÊMEA GIRATORIO PARA SEALTUBO 3'' | C38: unid. | D38: 44785 | E38: 115.5 | G38: 04.181.115/0001-80 | H38: PIZZATTO \\ (65)3052-4200 \\ Leandro
A39: COT.10 | B39: CONECTOR FÊMEA GIRATORIO PARA SEALTUBO 3'' | C39: unid. | D39: 44785 | E39: 129.54 | F39: 129.54 | G39: 07.237.858/0001-13 | H39: COTELETRICA MATERIAIS ELETRICOS \\ (65) 3025-4300 \\ Patriane Mendes
A40: COT.11 | B40: CONECTOR MACHO GIRATORIO PARA SEALTUBO 3'' | C40: unid. | D40: 44785 | E40: 155.72 | G40: 06.110.817/0004-41 | H40: ATIVA MATERIAIS ELETRICOS LTDA \\ (65)3051-7844 \\ José Ta Bosa
A41: COT.11 | B41: CONECTOR MACHO GIRATORIO PARA SEALTUBO 3'' | C41: unid. | D41: 44785 | E41: 110.2 | G41: 04.181.115/0001-80 | H41: PIZZATTO \\ (65)3052-4200 \\ Leandro
A42: COT.11 | B42: CONECTOR MACHO GIRATORIO PARA SEALTUBO 3'' | C42: unid. | D42: 44785 | E42: 115.14 | F42: 115.14 | G42: 07.237.858/0001-13 | H42: COTELETRICA MATERIAIS ELETRICOS \\ (65) 3025-4300 \\ Patriane Mendes
A43: COT.12 | B43: BARRA DE AÇO ROSCADA Ø1/4" 50 CM | C43: unid. | D43: 44785 | E43: 18 | F43: 18 | G43: 15.987.913/0001-10 | H43: TUDO HIDRAULICA E ELETRICA \\ 65-3321-0009 \\ Matheus Roldao
A44: COT.12 | B44: BARRA DE AÇO ROSCADA Ø1/4" 50 CM | C44: unid. | D44: 44785 | E44: 4.95 | G44: 07.237.858/0001-13 | H44: COTELETRICA MATERIAIS ELETRICOS \\ (65) 3025-4300 \\ Patriane Mendes
A45: COT.12 | B45: BARRA DE AÇO ROSCADA Ø1/4" 50 CM | C45: unid. | D45: 44785 | E45: 18.33 | G45: 07.624.206/0001-31 | H45: BRANEL ComÈrcio de Materiais ElÈtricos \\ (65)3027-9000 \\ Ricardo
A46: COT.13 | B46: ARRUELA LISA Ø1/4" | C46: unid. | D46: 44785 | E46: 0.2 | G46: 15.987.913/0001-10 | H46: TUDO HIDRAULICA E ELETRICA \\ 65-3321-0009 \\ Matheus Roldao
A47: COT.13 | B47: ARRUELA LISA Ø1/4" | C47: unid. | D47: 44785 | E47: 0.26 | F47: 0.26 | G47: 07.237.858/0001-13 | H47: COTELETRICA MATERIAIS ELETRICOS \\ (65) 3025-4300 \\ Patriane Mendes
A48: COT.13 | B48: ARRUELA LISA Ø1/4" | C48: unid. | D48: 44785 | E48: 0.46 | G48: 07.624.206/0001-31 | H48: BRANEL ComÈrcio de Materiais ElÈtricos \\ (65)3027-9000 \\ Ricardo
A49: COT.14 | B49: PORCA SEXTAVADA BICROMATIZADO 3/16'' | C49: unid. | D49: 44785 | E49: 1.17 | G49: 06.110.817/0004-41 | H49: ATIVA MATERIAIS ELETRICOS LTDA \\ (65)3051-7844 \\ José Ta Bosa
A50: COT.14 | B50: PORCA SEXTAVADA BICROMATIZADO 3/16'' | C50: unid. | D50: 44785 | E50: 0.2 | F50: 0.2 | G50: 04.181.115/0001-80 | H50: PIZZATTO \\ (65)3052-4200 \\ Leandro
A51: COT.14 | B51: PORCA SEXTAVADA BICROMATIZADO 3/16'' | C51: unid. | D51: 44785 | E51: 0.05 | G51: 07.624.206/0001-31 | H51: BRANEL ComÈrcio de Materiais ElÈtricos \\ (65)3027-9000 \\ Ricardo
A52: COT.15 | B52: PARAFUSO SEXTAVADA BICROMATIZADO 1/4 x 1/2'' | C52: unid. | D52: 44785 | E52: 0.38 | G52: 04.181.115/0001-80 | H52: PIZZATTO \\ (65)3052-4200 \\ Leandro
A53: COT.15 | B53: PARAFUSO SEXTAVADA BICROMATIZADO 1/4 x 1/2'' | C53: unid. | D53: 44785 | E53: 1.54 | G53: 07.237.858/0001-13 | H53: COTELETRICA MATERIAIS ELETRICOS \\ (65) 3025-4300 \\ Patriane Mendes
A54: COT.15 | B54: PARAFUSO SEXTAVADA BICROMATIZADO 1/4 x 1/2'' | C54: unid. | D54: 44785 | E54: 1.05 | F54: 1.05 | G54: 07.624.206/0001-31 | H54: BRANEL ComÈrcio de Materiais ElÈtricos \\ (65)3027-9000 \\ Ricardo
A55: COT.16 | B55: ARRUELA LISA 3/16'' | C55: unid. | D55: 44785 | E55: 0.41 | G55: 06.110.817/0004-41 | H55: ATIVA MATERIAIS ELETRICOS LTDA \\ (65)3051-7844 \\ José Ta Bosa
A56: COT.16 | B56: ARRUELA LISA 3/16'' | C56: unid. | D56: 44785 | E56: 0.32 | F56: 0.32 | G56: 04.181.115/0001-80 | H56: PIZZATTO \\ (65)3052-4200 \\ Leandro
A57: COT.16 | B57: ARRUELA LISA 3/16'' | C57: unid. | D57: 44785 | E57: 0.3 | G57: 07.624.206/0001-31 | H57: BRANEL ComÈrcio de Materiais ElÈtricos \\ (65)3027-9000 \\ Ricardo
A58: COT.17 | B58: ISOLADOR EPOXI DIAMETRO 20MM COMPRIMENTO 20MM PARAFUSO 1/4 | C58: unid. | D58: 44785 | E58: 6.09 | G58: 15.987.913/0001-10 | H58: TUDO HIDRAULICA E ELETRICA \\ 65-3321-0009 \\ Matheus Roldao
A59: COT.17 | B59: ISOLADOR EPOXI DIAMETRO 20MM COMPRIMENTO 20MM PARAFUSO 1/4 | C59: unid. | D59: 44785 | E59: 8.06 | G59: 07.237.858/0001-13 | H59: COTELETRICA MATERIAIS ELETRICOS \\ (65) 3025-4300 \\ Patriane Mendes
A60: COT.17 | B60: ISOLADOR EPOXI DIAMETRO 20MM COMPRIMENTO 20MM PARAFUSO 1/4 | C60: unid. | D60: 44785 | E60: 7.73 | F60: 7.73 | G60: 07.624.206/0001-31 | H60: BRANEL ComÈrcio de Materiais ElÈtricos \\ (65)3027-9000 \\ Ricardo
A61: COT.18 | B61: DISJUNTOR CAIXA MOLDADA TRIPOLAR 70A | C61: unid. | D61: 44785 | E61: 301.7 | G61: 04.181.115/0001-80 | H61: PIZZATTO \\ (65)3052-4200 \\ Leandro
A62: COT.18 | B62: DISJUNTOR CAIXA MOLDADA TRIPOLAR 70A | C62: unid. | D62: 44785 | E62: 214.92 | F62: 214.92 | G62: 07.237.858/0001-13 | H62: COTELETRICA MATERIAIS ELETRICOS \\ (65) 3025-4300 \\ Patriane Mendes
A63: COT.18 | B63: DISJUNTOR CAIXA MOLDADA TRIPOLAR 70A | C63: unid. | D63: 44785 | E63: 341.14 | G63: 07.624.206/0001-31 | H63: BRANEL ComÈrcio de Materiais ElÈtricos \\ (65)3027-9000 \\ Ricardo
A64: COT.19 | B64: DISJUNTOR CAIXA MOLDADA TRIPOLAR 225A | C64: unid. | D64: 44785 | E64: 356.91 | G64: 04.181.115/0001-80 | H64: PIZZATTO \\ (65)3052-4200 \\ Leandro
A65: COT.19 | B65: DISJUNTOR CAIXA MOLDADA TRIPOLAR 225A | C65: unid. | D65: 44785 | E65: 371.41 | F65: 371.41 | G65: 07.237.858/0001-13 | H65: COTELETRICA MATERIAIS ELETRICOS \\ (65) 3025-4300 \\ Patriane Mendes
A66: COT.19 | B66: DISJUNTOR CAIXA MOLDADA TRIPOLAR 225A | C66: unid. | D66: 44785 | E66: 570.48 | G66: 07.624.206/0001-31 | H66: BRANEL ComÈrcio de Materiais ElÈtricos \\ (65)3027-9000 \\ Ricardo
A67: COT.20 | B67: ACRILICO PORTEÇÃO PARA QUARDO DISTRIBUIÇÃO 2000 X 1000 X3 MM | C67: unid. | D67: 44785 | E67: 1181.12 | G67: 06.110.817/0004-41 | H67: ATIVA MATERIAIS ELETRICOS LTDA \\ (65)3051-7844 \\ José Ta Bosa
A68: COT.20 | B68: ACRILICO PORTEÇÃO PARA QUARDO DISTRIBUIÇÃO 2000 X 1000 X3 MM | C68: unid. | D68: 44785 | E68: 445.2 | G68: 04.181.115/0001-80 | H68: PIZZATTO \\ (65)3052-4200 \\ Leandro
A69: COT.20 | B69: ACRILICO PORTEÇÃO PARA QUARDO DISTRIBUIÇÃO 2000 X 1000 X3 MM | C69: unid. | D69: 44785 | E69: 657.14 | F69: 657.14 | G69: 07.624.206/0001-31 | H69: BRANEL ComÈrcio de Materiais ElÈtricos \\ (65)3027-9000 \\ Ricardo
A70: COT.21 | B70: QUADRO DE COMANDO 800 X800 X 250 MM - COMPLETO COM CHAPA DE MONTAGEM - (ENCONTRADO - 800 X 600 X 250 MM) | C70: unid. | D70: 44785 | E70: 1381.32 | F70: 1381.32 | G70: 06.110.817/0004-41 | H70: ATIVA MATERIAIS ELETRICOS LTDA \\ (65)3051-7844 \\ José Ta Bosa
A71: COT.21 | B71: QUADRO DE COMANDO 800 X800 X 250 MM - COMPLETO COM CHAPA DE MONTAGEM - (ENCONTRADO - 1000 X 600 X 250 MM) | C71: unid. | D71: 44785 | E71: 1388 | G71: 04.181.115/0001-80 | H71: PIZZATTO \\ (65)3052-4200 \\ Leandro
A72: COT.21 | B72: QUADRO DE COMANDO 800 X800 X 250 MM - COMPLETO COM CHAPA DE MONTAGEM - (ENCONTRADO - 800 X 600 X 250 MM) | C72: unid. | D72: 44785 | E72: 739.52 | G72: 07.237.858/0001-13 | H72: COTELETRICA MATERIAIS ELETRICOS \\ (65) 3025-4300 \\ Patriane Mendes
A73: COT.22 | B73: BARRAMENTO DE COBRE 20X300 MM - TERRA/NEUTRO | C73: unid. | D73: 44785 | E73: 34.31 | G73: 06.110.817/0004-41 | H73: ATIVA MATERIAIS ELETRICOS LTDA \\ (65)3051-7844 \\ José Ta Bosa
A74: COT.22 | B74: BARRAMENTO DE COBRE 20X300 MM - TERRA/NEUTRO | C74: unid. | D74: 44785 | E74: 63.6872125 | F74: 63.69 | G74: 07.237.858/0001-13 | H74: COTELETRICA MATERIAIS ELETRICOS \\ (65) 3025-4300 \\ Patriane Mendes
A75: COT.22 | B75: BARRAMENTO DE COBRE 20X300 MM - TERRA/NEUTRO | C75: unid. | D75: 44785 | E75: NEGATIVA | G75: .----------------------. | H75: .---------------------------------------------------------------.
A76: COT.23 | B76: PARAFUSO SEXT. BICROMATIZADO 3/16'' | C76: unid. | D76: 44785 | E76: 0.87 | F76: 0.87 | G76: 06.110.817/0004-41 | H76: ATIVA MATERIAIS ELETRICOS LTDA \\ (65)3051-7844 \\ José Ta Bosa
A77: COT.23 | B77: PARAFUSO SEXT. BICROMATIZADO 3/16'' | C77: unid. | D77: 44785 | E77: 1.58 | G77: 04.181.115/0001-80 | H77: PIZZATTO \\ (65)3052-4200 \\ Leandro
A78: COT.23 | B78: PARAFUSO SEXT. BICROMATIZADO 3/16'' | C78: unid. | D78: 44785 | E78: NEGATIVA | G78: .----------------------. | H78: .---------------------------------------------------------------.
A79: COT.24 | B79: DISJUNTOR CAIXA MOLDADA TRIPOLAR 150A | C79: unid. | D79: 44785 | E79: 350 | F79: 350 | G79: 04.181.115/0001-80 | H79: PIZZATTO \\ (65)3052-4200 \\ Leandro
A80: COT.24 | B80: DISJUNTOR CAIXA MOLDADA TRIPOLAR 150A | C80: unid. | D80: 44785 | E80: 287.98 | G80: 07.237.858/0001-13 | H80: COTELETRICA MATERIAIS ELETRICOS \\ (65) 3025-4300 \\ Patriane Mendes
A81: COT.24 | B81: DISJUNTOR CAIXA MOLDADA TRIPOLAR 150A | C81: unid. | D81: 44785 | E81: 551.81 | G81: 06.110.817/0004-41 | H81: ATIVA MATERIAIS ELETRICOS LTDA \\ (65)3051-7844 \\ José Ta Bosa
A82: COT.25 | B82: DISJUNTOR CAIXA MOLDADA TRIPOLAR 200A | C82: unid. | D82: 44785 | E82: 349.53 | G82: 04.181.115/0001-80 | H82: PIZZATTO \\ (65)3052-4200 \\ Leandro
A83: COT.25 | B83: DISJUNTOR CAIXA MOLDADA TRIPOLAR 200A | C83: unid. | D83: 44785 | E83: 370.95 | F83: 370.95 | G83: 07.237.858/0001-13 | H83: COTELETRICA MATERIAIS ELETRICOS \\ (65) 3025-4300 \\ Patriane Mendes
A84: COT.25 | B84: DISJUNTOR CAIXA MOLDADA TRIPOLAR 200A | C84: unid. | D84: 44785 | E84: 551.81 | G84: 06.110.817/0004-41 | H84: ATIVA MATERIAIS ELETRICOS LTDA \\ (65)3051-7844 \\ José Ta Bosa
A85: COTGLOBAL.01 | B85: KIT DE GERAÇÃO DE ENERGIA SOLAR FOTOVOLTAICA - 123,75 kWp - CRECHE | C85: unid. | D85: 44778 | E85: 311655.22 | F85: 311655.22 | G85: 28.744.960/0001-85 | H85: FOCO ENERGIA TECNOLOGIA E INOVACAO LTDA \\ (49)3664-3739 \\ MARIA EDUARDA
A86: COTGLOBAL.01 | B86: KIT DE GERAÇÃO DE ENERGIA SOLAR FOTOVOLTAICA - 123,75 kWp - CRECHE | C86: unid. | D86: 44778 | E86: 336132.13 | H86: PROPOSTA Nº 71318 -
A87: COTGLOBAL.01 | B87: KIT DE GERAÇÃO DE ENERGIA SOLAR FOTOVOLTAICA - 123,75 kWp - CRECHE | C87: unid. | D87: 44778 | E87: 302700 | G87: 05.262.518/0001-17 | H87: SERRANA SOLAR \\ (54) 3039.9999 \\ www.serranasolar.com.br \\ Caxias do Sul – RS
A88: COTGLOBAL.02 | B88: KIT DE GERAÇÃO DE ENERGIA SOLAR FOTOVOLTAICA - 62,70 Kwp - ESCOLA MUNICIPAL | C88: unid. | D88: 44778 | E88: 159363.87 | F88: 159363.87 | G88: 28.744.960/0001-85 | H88: FOCO ENERGIA TECNOLOGIA E INOVACAO LTDA \\ (49)3664-3739 \\ MARIA EDUARDA
A89: COTGLOBAL.02 | B89: KIT DE GERAÇÃO DE ENERGIA SOLAR FOTOVOLTAICA - 62,70 Kwp - ESCOLA MUNICIPAL | C89: unid. | D89: 44778 | E89: 181892.66 | H89: PROPOSTA Nº 71318 -
A90: COTGLOBAL.02 | B90: KIT DE GERAÇÃO DE ENERGIA SOLAR FOTOVOLTAICA - 62,70 Kwp - ESCOLA MUNICIPAL | C90: unid. | D90: 44778 | E90: 154450 | G90: 05.262.518/0001-17 | H90: SERRANA SOLAR \\ (54) 3039.9999 \\ www.serranasolar.com.br \\ Caxias do Sul – RS
